Workbook

Sheet Cover Page
D1: Add company logo
K2: Template version 25.1a (for incinerators) - 27/11/25
K4: Note that there is another version of this template available for co-incinerators
B8: Add photo
K13: Notes:
K14: This template may require adjustments by individual operators to meet specific reporting requirements as defined in the site Permit(s)
B29: Annual Performance Report 2025
B31: Permit EPR/EP3034SN
B33: Eastcroft EfW Site
B37: WasteNotts (Reclamation) Limited
B39: Year: | C39: 2025
B41: Address: | C41: Incinerator Road, Off Cattle Market Road, Nottingham NG23JH
B43: Tel: | C43: 0115 9869505
B45: Email:
B47: Prepared by: | C47: Leigh Hornsby | F47: Position: | G47: Environment Manager
B49: Approved by: | C49: Stephen Lormor | F49: Position: | G49: General Manager
B51: Version: | C51: 1
B53: Issue Date: | C53: 2026-01-30

Sheet Facility Info
A1: =+'Cover Page'!$B$29 -> Annual Performance Report 2025 | E1: =+'Cover Page'!$B$33 -> Eastcroft EfW Site
A3: Plant Description and Design | K3: Notes:
A5: The EfW facility currently comprises two incineration streams each capable of burning up to 11.7 tonnes/hour of municipal and light commercial and industrial waste. The plant has a theoretical capacity of just over 200,000 tonnes per annum; however with planned maintenance the annual throughput is approximately 185,000 tonnes. The site has planning permission to add a third line to the plant which is included in the scope of the Environmental Permit (EP3034SN) but has yet to be developed. The facility generates around 50 tonnes of steam per hour with no electrical generation undertaken at the Eastcroft facility. Steam is exported to a third party (Nottingham City Council, formerly EnviroEnergy) who operate a combined heat and power facility providing electricity and feeding into Nottingham's district heating network. | K5: Include summary of plant design, design capacity, no. of combustion lines, electrical and heat capacity and any other general information that describes the facility, its location and purpose
A20: Summary of Operational Processes and Procedures
A22: Municipal waste and non-hazardous commercial/industrial/trade waste is delivered to site by lorry and tipped into one of two refuse bunkers inside the tipping hall. Deliveries are typically made from Monday to Saturday morning. Waste is transferred from the bunkers by grab crane into the feed chute of each incinerator stream. Waste is only fed to the incinerator if the temperature is above 850°C. Each incinerator stream has a moving grate on which the waste is burned, with preheated air being injected from below the grate. Combustion air is drawn from the tipping hall and boiler hall to reduce odours and dust levels in these areas and fed to the furnace via an air preheater which can raise the temperature of the air up to 160°C. Two auxiliary burners, fired on gas oil, are installed halfway up each combustion chamber to maintain temperatures above the 850°C threshold. The auxiliary burners are also used to pre-heat the incinerators before start up. Ammonium hydroxide is injected into the furnaces to reduce emissions of nitrogen oxides (this technique is known as selective non-catalytic reduction or SNCR). Hot gases from the combustion chamber pass to a boiler in which steam is raised and sent to the London Road Heat Station (operated by Nottingham City Council, formerly EnviroEnergy) for supply of heat to the district heating system and generation of electricity. Flue gases leaving the boiler are cooled to about 130°C in the economiser to achieve the correct temperature for gas treatment. Incinerator bottom ash is quenched in water and collected in a residuals bunker inside the building. The silo is emptied regularly and the bottom ash is sent for metal extraction and use as a substitute aggregate. Fly ash entrained within the incinerator exhaust gases, together with any accumulations of dust removed from the walls of the economiser by the shot cleaning system, is treated in the air pollution control equipment. Each incinerator stream has its own dedicated air pollution control equipment. Cooled flue gases leaving the economiser are dosed with a mixture of hydrated lime, activated carbon and recirculated reagent, in order to reduce acid gases (by reaction with the lime), and other substances such as heavy metals and hydrocarbons (by adsorption onto the activated carbon). The exhaust gases and reagent particles are then filtered in a four compartment fabric filter to remove the dust burden. The fabric filters are regularly cleaned by reverse jet pulses, and the collected end product is stored in the APC residue silo. The APC residue silo is regularly emptied and the residue used to treat industrial acidic wastes before final disposal in a suitably licensed landfill site. The treated exhaust gases from both streams are discharged via the 91m high stack. The final emissions from the municipal waste incinerator are continuously monitored for particulate matter, sulphur dioxide, nitrogen oxides, carbon monoxide, hydrogen chloride, volatile organic compounds, nitrous oxide, carbon dioxide and ammonia prior to entry into the main stack. | K22: Include summary of key processes and procedures such as (but not limited to); waste reception, control rooms, grate, bed and boiler, energy & heat generation, cooling systems, residue management, emission controls, health and safety systems, maintenance

Sheet Operational Data
A1: =+'Cover Page'!$B$29 -> Annual Performance Report 2025 | E1: =+'Cover Page'!$B$33 -> Eastcroft EfW Site
A3: Operational Data
A4: Plant Size: | B4: 200000 | D4: tonnes pa | J4: Notes:
A5: Nominal net thermal input: | B5: 54 | C5: MWth | J5: * Export capacity = nominal generation capacity at the generator terminals minus nominal parasitic load. ** CHP and district heating plants only - put N/A if no heat export. *** Combusted tonnage = tonnes delivered in period + (tonnes in bunker at start of period – tonnes in bunker at end of period), or equivalent calculation depending on plant type **** Availability Definition: The availability of a line is to be calculated by the number of hours the line reported Continuously Monitored emission levels to the Regulator through the calendar year divided by the total number of hours in that year. The overall plant availability is calculated as the mean of all lines in the plant. For clarity this includes periods of abnormal operation. Rationale: The primary function of an Energy from Waste facility is the disposal of waste. It follows therefore that the availability of a plant is determined by the period of time a facility spends undertaking this activity. *****NCV of waste: This should be completed for all plants which have a boiler. Calculate using total thermal power produced by boiler/boiler efficiency, or other suitable calculation.
A6: Nominal electrical export capacity*: | B6: N/A | C6: MWe
A7: Nominal heat export capacity**: | B7: 51 | C7: MWth
A8: No. of combustion lines: | B8: 2 | C8: No. of steam turbines: | E8: 0
A10: Waste types received | B10: Unit | C10: Q1 | D10: Q2 | E10: Q3 | F10: Q4 | G10: Year Total | H10: %
A11: Household / Local Authority | B11: tonnes | C11: 44726.02 | D11: 39045.28 | E11: 29257.72 | F11: 44326.3 | G11: =SUM(C11:F11) -> 157355.32 | H11: =IF(G11>0,G11/$G$21,"-") -> 0.8871084804
A12: Commercial & Industrial | C12: 5511.7 | D12: 4672.22 | E12: 2246.36 | F12: 7594.42 | G12: =SUM(C12:F12) -> 20024.7 | H12: 0.1128915196
A13: Hazardous | G13: 0 | H13: -
A14: Clinical | G14: 0 | H14: -
A15: Waste wood (biomass) | G15: 0 | H15: -
A16: Refuse Derived Fuel (incl. SRF) - H'hold/LA | G16: =SUM(C16:F16) -> 0 | H16: -
A17: Refuse Derived Fuel (incl. SRF) - C&I | G17: 0 | H17: -
A18: Other [Please specify] | G18: 0 | H18: -
A19: Other [Please specify] | G19: 0 | H19: -
A20: Other [Please specify] | G20: 0 | H20: -
A21: Total waste received | C21: =SUM(C11:C20) -> 50237.72 | D21: =SUM(D11:D20) -> 43717.5 | E21: =SUM(E11:E20) -> 31504.08 | F21: =SUM(F11:F20) -> 51920.72 | G21: 177380.02
A22: Rejected Waste | G22: =SUM(C22:F22) -> 0 | H22: =IF(G22>0,G22/$G$21,"-") -> -
A23: Unprocessed waste transferred out | G23: =SUM(C23:F23) -> 0 | H23: =IF(G23>0,G23/$G$21,"-") -> -
A24: Total waste combusted *** | C24: 50237.72 | D24: 43717.5 | E24: 31504.08 | F24: 51920.72 | G24: =SUM(C24:F24) -> 177380.02
A26: Energy Usage / Export | B26: Unit | C26: Q1 | D26: Q2 | E26: Q3 | F26: Q4 | G26: Year Total | H26: KWh/te | J26: Password for protected cells A password has been set to prevent accidental editing of cells with formulae. If you still need to make an edit for some reason then the password = 1234
A27: Power generated at generator terminals | B27: MWh | G27: =SUM(C27:F27) -> 0 | H27: =IF(G27>0,G27*1000/$G$24,"-") -> -
A28: Power exported to grid and other external user(s) | G28: =SUM(C28:F28) -> 0 | H28: =IF(G28>0,G28*1000/$G$24,"-") -> -
A29: Power imported | C29: 2787.82 | D29: 2313 | E29: 1921.777 | F29: 2900.364 | G29: 9922.961 | H29: =IF(G29>0,G29*1000/$G$24,"-") -> 55.94181915
A30: Indicative parasitic load | B30: % | C30: =IF(C27>0,(C27-C28)/C27,"-") -> - | D30: =IF(D27>0,(D27-D28)/D27,"-") -> - | E30: - | F30: - | G30: =IF(G27>0,1-G28/(G27+G29),"-") -> -
A31: Thermal Energy Exported ** | C31: 92682 | D31: 77386 | E31: 58447 | F31: 90759 | G31: =SUM(C31:F31) -> 319274 | H31: =IF(G31>0,G31*1000/$G$24,"-") -> 1799.943421
A32: R1 value (if applicable) | B32: R1 | C32: - | D32: - | E32: - | F32: -
A34: Waste Disposal & Recovery | B34: Unit | C34: Q1 | D34: Q2 | E34: Q3 | F34: Q4 | G34: Year Total | H34: % inputs
A35: APC Residues - produced | B35: tonnes | C35: 1285.04 | D35: 1047.32 | E35: 776.02 | F35: 1218.34 | G35: =SUM(C35:F35) -> 4326.72 | H35: =IF(G35>0,G35/$G$24,"-") -> 0.0243923752
A36: IBA - produced | C36: 9252.1 | D36: 8375.8 | E36: 5760.44 | F36: 8599.98 | G36: 31988.32 | H36: =IF(G36>0,G36/$G$24,"-") -> 0.1803377855
A37: Metals recycling | G37: =SUM(C37:F37) -> 0 | H37: -
A38: Other | C38: 0 | D38: 0 | E38: 0 | F38: 0 | G38: =SUM(C38:F38) -> 0 | H38: -
A39: Other | C39: 0 | D39: 0 | E39: 0 | F39: 0 | G39: 0 | H39: -
A40: Other | C40: 0 | D40: 0 | E40: 0 | F40: 0 | G40: 0 | H40: -
A42: Raw Material Usage | B42: Unit | C42: Q1 | D42: Q2 | E42: Q3 | F42: Q4 | G42: Year Total | H42: Qty./te
A43: Mains Water | B43: ltrs | C43: 799000 | D43: 691000 | E43: 529000 | F43: 828000 | G43: =SUM(C43:F43) -> 2847000 | H43: =IF(G43>0,G43/$G$24,"-") -> 16.05028571
A44: Other Water | B44: ltrs | G44: 0 | H44: =IF(G44>0,G44/$G$24,"-") -> -
A45: Ammonia | B45: kgs | C45: 139100 | D45: 99300 | E45: 89280 | F45: 139060 | G45: 466740 | H45: 2.631299737
A46: Urea | B46: kgs | G46: =SUM(C46:F46) -> 0 | H46: -
A47: Activated Carbon | B47: kgs | C47: 40100 | D47: 25120 | E47: 40500 | F47: 20160 | G47: 125880 | H47: 0.7096627907
A48: Lime / hydrated lime | B48: kgs | C48: 390540 | D48: 277020 | E48: 277340 | F48: 305400 | G48: 1250300 | H48: 7.048708192
A49: Fuel oil | B49: ltrs | C49: 29595 | D49: 30158 | E49: 127597 | F49: 13776 | G49: 201126 | H49: 1.133870658
A50: Gas | B50: m3 | G50: 0 | H50: -
A51: Other | G51: 0 | H51: -
A53: Summary | B53: Line/Unit | C53: Q1 | D53: Q2 | E53: Q3 | F53: Q4 | G53: Year Total | I53: Hrs in year
A54: Availability of waste combustion by line, hrs **** | B54: 1 | C54: 2156 | D54: 1801 | E54: 999.55 | F54: 2146 | G54: =SUM(C54:F54) -> 7102.55 | H54: =+G54/$I$54 -> 0.810793379 | I54: 8760 | J54: Change this figure to 8784 in a leap year
B55: 2 | C55: 2152.5 | D55: 1869 | E55: 1792 | F55: 2209 | G55: 8022.5 | H55: =+G55/$I$54 -> 0.9158105023
B56: 3 | G56: 0 | H56: 0
B57: 4 | G57: 0 | H57: 0
B58: 5 | G58: =SUM(C58:F58) -> 0 | H58: 0
A59: Hours of turbine operations, hrs | B59: 1 | G59: 0 | H59: 0
A60: Hours of turbine operations, hrs | B60: 2 | G60: 0 | H60: 0
A61: Hours of heat / steam export** | B61: hours | C61: 4308.5 | D61: 3670 | E61: 2791.55 | F61: 4355 | G61: 15125.05 | H61: =IF(B61>0,G60/I54,"n/a") -> 0
A62: Net calorific value of waste***** | B62: MJ/kg | C62: 8.458753003 | D62: 8.461612797 | E62: 8.610614491 | F62: 8.378081633
A63: Abnormal operation events | B63: qty. | E63: 1 | F63: 1 | G63: 2 | H63: =IF(G63>0,"yes","no") -> yes
A64: Abnormal operation duration | B64: hours | E64: 1 | F64: 1.5 | G64: 2.5 | H64: =+(G64)/I54 -> 0.0002853881279
A65: Permit Breaches | B65: qty. | C65: 3 | E65: 1 | F65: 10 | G65: 14 | H65: =IF(G65>0,"yes","no") -> yes

Sheet Operational Summary
A1: =+'Cover Page'!$B$29 -> Annual Performance Report 2025 | E1: =+'Cover Page'!$B$33 -> Eastcroft EfW Site
A3: Summary of Plant Operations and Maintenance during the reporting year | K3: Notes:
A5: During 2025 the facility ran for 15,125 hours across the 2 lines representing an availability of 86.4% with 177,380 tonnes delivered to site compared to a permit limit of 200,000 tonnes per annum. Nearly all of this waste was delivered by the local authorities of Nottingham and the surrounding area and most other wastes being categorised as municipal (Chapter 20 of the List of Wastes Regulations). The facility submitted 7 schedule notification during the year describing 10 exceedences of an emission limit, 7 of which were due to a single instance of non-conforming waste and three of which were minor TOC exceedances caused by gas cylinder explosions in the boiler. Environmental impact modelling of these events demonstrated no measurable environmental effect or exceedance of a relevant air quality threshold. The plant provided 319 GWh of energy in the form of steam and hot water to the Nottingham City Council (formerly EnviroEnergy) facility who operate a combined heat and power station, providing electricity to private customers, the national grid and providing heating to households and commercial premises through their district heating system. Eastcroft receives all electrical supply and water for the process from the Nottingham City Council facility. The main period of downtime related to a planned maintenance period within where routine maintenance that cannot be undertaken whilst the plant is operational took place. During the planned outage approximately 50% of each superheater was replaced. The plant was also brought offline to replace the grate hydraulic ram steelwork which had cracked due to metal fatigue. Additional short periods of downtime were required to rectify damage caused by gas cylinder explosions. | K5: Include summary of key operational and/or maintenance activity undertaken in the year, such as any major component upgrades and/or replacements
A29: =+'Cover Page'!C39 -> 2025 | B29: Plant shut-downs
A30: Start date | B30: End date | C30: Reason for shut-down | K30: Provide a very brief reason for plant shut-down e.g. "Shut-down prior to major outage"; "Emergency shut-down due to boiler tube leak". All emergency shut-downs must be listed (irrespective of whether or not they were required to be reported to the EA). There is no need to include periods of hot-standby here (e.g. to clear feed chute hopper blockages). For clinical waste incinerators which require regular shut-downs for boiler cleaning, there is no need to record these here (only those prior to major outages, and emergency shut-downs).
A31: 2025-04-03 | B31: 2025-04-04 | C31: Boiler repairs due to gas cylinder damage
A32: 2025-04-27 | B32: 2025-04-28 | C32: Boiler repairs due to gas cylinder damage
A33: 2025-05-18 | B33: 2025-05-21 | C33: Boiler repairs due to gas cylinder damage
A34: 2025-06-18 | B34: A1: 29/08/2025, A2: 17/07/2025 | C34: Planned outage. Line 1 was largely left offline during August due to lack of steam capacity at London Road Heat Station
A35: 2025-09-26 | B35: 2025-09-29 | C35: Line 1 shut down to manage non-conforming waste
A36: 2025-10-19 | B36: 2025-10-20 | C36: Boiler repairs due to gas cylinder damage
A37: 2025-12-11 | B37: 2025-12-12 | C37: Rapairs to grate ram and removal of built-up slag in boiler
A38: 2025-12-15 | B38: 2025-12-20 | C38: Rapairs to grate ram and removal of built-up slag in boiler
A39: 2025-12-23 | B39: 2025-12-24 | C39: Rapairs to grate ram and removal of built-up slag in boiler

Sheet Perf. Form 1
A1: =+'Cover Page'!C39 -> 2025 | B1: Annual Reporting Performance Form 1
A3: =+'Cover Page'!B31 -> Permit EPR/EP3034SN | F3: Operator: | G3: =+'Cover Page'!B37 -> WasteNotts (Reclamation) Limited
A4: Facility: | B4: =+'Cover Page'!B33:I33 -> Eastcroft EfW Site | F4: Form: | G4: Performance 1
A6: Reporting Period from: | F6: to:
A8: =+A1 -> 2025 | B8: Annual Reporting of Waste Disposal and Recovery
A9: Waste Description | C9: Disposal Route(s) | E9: Disposal Tonnes | G9: Recovery Tonnes | I9: % / tonne of waste incinerated
A10: 1) Hazardous Wastes
A11: APC Residues | C11: D03 | E11: 4327 | I11: =IF((E11+G11)>0,(E11+G11)/'Operational Data'!$G$24, "-") -> 0.02439395373
A12: IBA | I12: =IF((E12+G12)>0,(E12+G12)/'Operational Data'!$G$24, "-") -> -
I13: =IF((E13+G13)>0,(E13+G13)/'Operational Data'!$G$24, "-") -> -
I14: =IF((E14+G14)>0,(E14+G14)/'Operational Data'!$G$24, "-") -> -
A15: Total Hazardous Waste | E15: =SUM(E11:F14) -> 4327 | G15: =SUM(G11:H14) -> 0 | I15: =IF((E15+G15)>0,(E15+G15)/'Operational Data'!$G$24, "-") -> 0.02439395373
A17: 2) Non-Hazardous Wastes
A18: IBA | C18: R05 | G18: 31988 | I18: =IF((E18+G18)>0,(E18+G18)/'Operational Data'!$G$24, "-") -> 0.1803359815
A19: Ferrous Metal | I19: =IF((E19+G19)>0,(E19+G19)/'Operational Data'!$G$24, "-") -> -
A20: Process Water | I20: =IF((E20+G20)>0,(E20+G20)/'Operational Data'!$G$24, "-") -> -
I21: =IF((E21+G21)>0,(E21+G21)/'Operational Data'!$G$24, "-") -> -
I22: =IF((E22+G22)>0,(E22+G22)/'Operational Data'!$G$24, "-") -> -
A23: Total Non-Hazardous Waste | E23: =SUM(E18:F22) -> 0 | G23: =SUM(G18:H22) -> 31988 | I23: =IF((E23+G23)>0,(E23+G23)/'Operational Data'!$G$24, "-") -> 0.1803359815
A24: TOTAL WASTE | E24: =+E23+E15 -> 4327 | G24: =+G23+G15 -> 31988 | I24: =IF((E24+G24)>0,(E24+G24)/'Operational Data'!$G$24, "-") -> 0.2047299352
A26: Operator’s comments :
A31: =+A1 -> 2025 | B31: Annual Reporting of Water and Other Raw Material Usage
A32: Raw Material | E32: Usage | G32: Unit | H32: Specific Usage | J32: Unit
A33: Mains Water | E33: =+'Operational Data'!G43/1000 -> 2847 | G33: m3 | H33: =IF(E33>0,E33/'Operational Data'!$G$24,"-") -> 0.01605028571 | J33: m3/te
A34: Total Water | E34: =+'Operational Data'!G44+'Operational Data'!G43/1000 -> 2847 | G34: m3 | H34: =IF(E34>0,E34/'Operational Data'!$G$24,"-") -> 0.01605028571 | J34: m3/te
A35: Urea / Ammonia | E35: =+'Operational Data'!G45 -> 466740 | G35: kg | H35: =IF(E35>0,E35/'Operational Data'!$G$24,"-") -> 2.631299737 | J35: kg/te
A36: Activated Carbon | E36: =+'Operational Data'!G47 -> 125880 | G36: kg | H36: =IF(E36>0,E36/'Operational Data'!$G$24,"-") -> 0.7096627907 | J36: kg/te
A37: Lime / hydrated lime / Sodium Bicarb. | E37: =+'Operational Data'!G48 -> 1250300 | G37: kg | H37: =IF(E37>0,E37/'Operational Data'!$G$24,"-") -> 7.048708192 | J37: kg/te
A39: Operator’s comments :
A43: =+A31 -> 2025 | B43: Annual Reporting of other performance indicators
A44: Parameter | C44: Results by Line
C45: A1 | D45: A2 | E45: A3 | F45: A4 | G45: A5 | I45: Turbine 1 | J45: Turbine 2
A46: Operating hours for the year, hours | C46: 7103 | D46: 8023
A47: Number of periods of abnormal operation, qty. | C47: 2
A48: Cumulative hours of abnormal operation for this year, hours | C48: 2.5
A50: Operator’s comments :
A54: Signed: | G54: Date:

Sheet Energy Form 1
A1: =+'Cover Page'!C39 -> 2025 | B1: Annual Reporting of Energy Usage/Export
A3: =+'Cover Page'!B31 -> Permit EPR/EP3034SN | F3: Operator: | G3: =+'Cover Page'!B37 -> WasteNotts (Reclamation) Limited
A5: Facility: | B5: =+'Cover Page'!B33:I33 -> Eastcroft EfW Site | F5: Form: | G5: Energy 1
A7: Reporting Period from: | D7: =+'Perf. Form 1'!D6:E6 -> 00:00:00 | F7: to: | G7: =+'Perf. Form 1'!G6:H6 -> 00:00:00
A9: Energy Source | D9: Energy Usage | F9: Unit | G9: Specific Usage (KWh/tonne incinerated
A10: Electricity Produced | D10: =+'Operational Data'!G27 -> 0 | F10: MWh | G10: =+'Operational Data'!H27 -> -
A11: Electricity Imported | D11: =+'Operational Data'!G29 -> 9922.961 | F11: MWh | G11: =+'Operational Data'!H29 -> 55.94181915
A12: Electricity Exported | D12: =+'Operational Data'!G28 -> 0 | F12: MWh | G12: =+'Operational Data'!H28 -> -
A13: Gas Oil | D13: 165 | F13: tonnes
A14: Steam/hot water exported | D14: =+'Operational Data'!G31 -> 319274 | F14: GWh | G14: =+'Operational Data'!H31 -> 1799.943421
A18: Operator’s comments :
A29: Signed: | G29: Date:

Sheet Permit Compliance
A1: =+'Cover Page'!$B$29 -> Annual Performance Report 2025 | E1: =+'Cover Page'!$B$33 -> Eastcroft EfW Site
A3: Summary of Permit Compliance
A5: Compliance with permit limits for continuously monitored pollutants
A7: The plant met its emission limits as shown in the table below:
A8: Substance | C8: Percentage time compliant during operationNote 1 | L8: Notes:
C9: Half-hourly limit | F9: Daily limit | L9: Note 1: Please report to 2 decimal places, i.e. xx.xx% Note 2: Please enter into this table any permit non-compliances that the EA has given a CCS score for. Please also enter any other non-compliances which you have notified to the EA (e.g. ELV exceedances) but which have not yet been assessed by the EA. There is no need to enter any notifications which were subsequently assessed by the EA not to be permit breaches. Note 3: Please enter information here (rather than just referencing the notifications that were sent to the EA) including where relevant the incineration line reference, pollutant and value of the measured result for any ELV exceedances.
A10: Particulates | C10: 1 | F10: 1
A11: Oxides of nitrogen | C11: 1 | F11: 1
A12: Sulphur dioxide | C12: 1 | F12: 1
A13: Carbon monoxide | C13: xx.xx % or xx.xx% 95% of 10-min averages | F13: 1
A14: Total organic carbon | C14: 99.6% 97% of 30-min averages | F14: 1
A15: Hydrogen chloride | C15: 0.9997 | F15: 1
A16: Hydrogen fluoride | C16: N/A | F16: N/A
C17: xx.xx % | F17: xx.xx %
A19: Summary of non-compliances under the permit Note 2
A20: Date | B20: Summary of non-compliance Note 3 | D20: Reason | G20: Measures taken to prevent reoccurrence | H20: CCS score if applicable*
H21: Impact | I21: Root cause
A22: 2025-08-28 | B22: Line 1 biannual test exceedances of Dioxins and Furans (0.42ng) and HF (1.8mg) | D22: Combustion had not fully stabilised after outage | G22: Ensure stable combustion
A23: 25-28/09/2025 | B23: Line 1 exceedances of HCl 1/2 hour of 99.5, 161.7, 97.2, 85.9,142, 70.3, 65.2, 81.3, 241, 150.3 | D23: High Chloride rubber turnings tipped in bunker contaminating the waste | G23: Removed waste and returned to producer, audited waste supplier site procedures, increased waste inspections | H23: CCS4=No Impact | I23: Waste producer's waste acceptance procedures
A27: *If the Environment Agency (EA) has given a Compliance Classification Scheme (CCS) score due to a permit non-compliance it should be entered here (CCS4 = No impact; CCS3 = Minor impact; CCS2 = Significant impact; CCS1 = Major impact). If the EA has not yet assessed a non-compliance which you have notified to them, these columns should be left blank. Enter N/A if no score was given for the root cause.
A29: Summary of any complaints received and actions to taken to resolve them.
A30: Date | B30: Summary of complaint [including Line/Reference] | E30: Reason (including whether substantiated by the operator or the EA) | H30: Measures taken to prevent reoccurrence
A31: 2025-04-07 | B31: Noise complaint | E31: Noise determined to originate from another facility therefore unsubstantiated | H31: Met with complainant to assist with identification of noise source
A32: 2025-08-06 | B32: Odour complaint | E32: Believed to be from waste bunker due to hot summer, lengthy outage and damaged tipping hall door waste-contaminated grab left in the yard for repairs. Substantiated by Site Manager | H32: Grab cleaned and arrangements under way for tipping hall door repairs

Sheet Improvements
A1: =+'Cover Page'!$B$29 -> Annual Performance Report 2025 | E1: =+'Cover Page'!$B$33 -> Eastcroft EfW Site
A3: Summary of Plant Improvements
A5: Summary of any efficiency improvements that have been completed within the year.
A6: LED lighting replacement ongoing
A16: Summary of any permit improvement conditions that have been completed within the year and the resulting environmental benefits.
A17: Report on NOx trials received from Environment Agency closing out associated Improvement Condition.
A27: Summary of any changes to the plant or operating techniques which required a variation to the permit and a summary of the resulting environmental impact.
A28: Permit varied to move TOC ELV to 10 mg/Nm3 97% due to significant increase in Nitrous Oxide cylinders hidden in black bag waste causing very brief TOC spikes.
A38: Summary of any other improvements made to the plant or planned to be made and a summary of the resulting environmental benefits.

Sheet Public Liasion
A1: =+'Cover Page'!$B$29 -> Annual Performance Report 2025 | E1: =+'Cover Page'!$B$33 -> Eastcroft EfW Site
A3: Details of Public & Stakeholder Liaison
A5: Summary of events held during the reporting year.
A6: Date | C6: Description
A7: 2025-09-24 | C7: Community Liaison Group Meeting
A16: List of events planned for next year
A17: Date | C17: Description
A18: TBC | C18: Community Liaison Group Meeting
A29: If you wish to be involved in the public liasion programme, please contact info.eastcroft@fccenvironment.co.uk 0115 9869505 or visit https://eastcroft.fccenvironment.co.uk/contact-us/

Sheet CO2 N2O
A1: =+'Cover Page'!$B$29 -> Annual Performance Report 2025 | C1: =+'Cover Page'!$B$33 -> Eastcroft EfW Site
A3: Carbon dioxide emissions and biogenic content of waste inputs | F3: Notes:
A5: Carbon dioxide emissions (all types of plant)
B6: Annual mass of carbon dioxide released | C6: tonnes | D6: 171742
B7: Annual mass of carbon dioxide released per tonne of waste burned | C7: t CO2 / t waste | D7: 0.97 | F7: Note 1: All permits require operators to continuously monitor CO2 to EN14181 and flow to BS EN 16911-2 (unless otherwise agreed in writing). Operators must therefore use the results from these instruments to calculate their annual CO2 emissions. Where an operator does not have a flow meter calibrated to BS EN 16911-2, the averaged flow measurement from that year's periodic monitoring can be used instead. If the plant does not have calibrated CO2 CEMS, a suitably justified emissions factor can be used.
B8: Annual mass of carbon dioxide released per MWh of energy exported | C8: t CO2 / MWh export | D8: 0.54
B9: Description of how annual carbon dioxide mass emission has been calculated. See Note 1 | C9: Flow and CO2 emissions taken from calibrated CEMs
A10: Nitrous oxide emissions (only plants which use ammonia or urea to abate NOx emissions)
B11: Annual mass emissions of nitrous oxide | C11: tonnes N2O | D11: 355
B12: Description of how annual nitrous oxide mass emission has been calculated See Note 2 | C12: Calibrated CEMs and flow meter | F12: Note 2: All permits require operators to continuously monitor N2O to EN14181 and flow to BS EN 16911-2, unless otherwise agreed in writing. Operators must therefore use the results from these instruments to calculate their annual N2O emissions. Where an operator does not have a flow meter calibrated to BS EN 16911-2, the averaged flow measurement from periodic monitoring can be used instead. If the plant does not have calibrated N2O CEMS, data from periodic monitoring or a suitably justified emissions factor can be used instead.
A13: Total annual carbon dioxide + nitrous oxide emissions. See Note 3. | C13: tonnes CO2e | D13: 265817 | F13: Note 3: Total annual carbon dioxide and nitrous oxide emissions reported as carbon dioxide equivalent where 1 tonne nitrous oxide is equivalent to 265 tonnes carbon dioxide.
A14: Biogenic CO2 emissions (See Note 4) | F14: Note 4: Only plants combusting residual municipal waste, refuse derived fuel or solid recovered fuel need complete this section.
B15: Percentage of total carbon dioxide emissions arising from biogenic waste | C15: % | D15: 0.518
B16: No. of measurements undertaken | C16: Number | D16: 0
B17: Description of how percentage biogenic carbon dioxide emissions have been measured or calculated. See Note 5 | C17: Figure taken from 2017 WRAP data | F17: Note 5: The results from C14 sampling should be used if this is carried out at the plant (either via an installed sampler or from spot samples). Otherwise, as an approximation (and in lieu of any more accurate metrics which may be developed in future), the measured or estimated biogenic fraction by net calorific value (see Note 6) can be assumed to be the same as the biogenic CO2 fraction of the total CO2 emissions from the plant.
A18: Biogenic fraction of waste feedstock (See Note 4)
B19: Yearly average biogenic percentage of the waste by net calorific value (NCV) | C19: % | D19: 0.518
B20: Description of how biogenic percentage (by NCV) has been calculated or estimated. See Note 6 | C20: Figure taken from 2017 WRAP data | F20: Note 6: If C14 sampling is carried out at the plant, the methodology set out in the embedded document entitled "Renewable Energy Association Energy Content of Fuels - Description of Method" embedded below can be used to calculate the biogenic percentage by net calorific value. Otherwise, data from waste sampling or BIOMA software can be used; or if none of these are available, an estimated figure with justification or a figure assumed on the basis of up-to-date industry data can be used.
B21: Yearly average biogenic percentage of the waste by mass | C21: % | D21: 0.714
B22: If waste sampling undertaken, no. of samples used to ascertain average biogenic percentages above | C22: Number | D22: 25
B23: Description of how biogenic percentage (by mass) has been calculated or estimated. See Note 7 | C23: Audit of waste inputs by Alfred H Knight | F23: Note 7: Where available, data from waste sampling should be used; otherwise, an estimated figure with justification can be used, or a figure assumed on the basis of up-to-date industry data.
B25: Comments:
B26: Compositional analysis is not usually carried out as Eastcroft does not have a turbine and thus has no requirement for REGO analysis. Carbon 14 autosampler is currently being installed for 2026

Sheet Residues
A1: =+'Cover Page'!$B$29 -> Annual Performance Report 2025 | E1: =+'Cover Page'!$B$33 -> Eastcroft EfW Site
A3: Summary of Residue Handling for the reporting year
A5: Monitoring of residues for permit compliance was undertaken with full compliance to the residue limit recorded. No specific events were recorded during 2025. | K5: Include in here a summary of residue handling regimes and destinations
A28: Residue Quality Monitoring Requirements
A30: Summary of monitoring undertaken and compliance
A31: 24 IBA samples and 4 APCr samples were analysed during the year with no non-conformances recorded
A38: Commentary on any specific events
A39: Date & Event | C39: Description
A52: Residue Quality Monitoring Results
A53: Parameter (unit) | C53: Limit* | D53: Normal Operation
D54: Bottom ash | F54: APC Residues
A55: Loss on Ignition (average %) | C55: <5% | D55: N/A
A56: Total Organic Carbon (average %) | C56: <3% | D56: 0.8
A57: No. of Assessments Undertaken | C57: --- | D57: 24 | F57: 4
A58: No. of Hazardous Results | C58: --- | D58: 0
A59: * The permit will specify a limit of either 5% loss on ignition or 3% total organic carbon. If both are measured anyway, please enter the results here, even where the limit does not apply.
A61: Comments :

Sheet Water
A1: =+'Cover Page'!$B$29 -> Annual Performance Report 2025 | E1: =+'Cover Page'!$B$33 -> Eastcroft EfW Site
A3: Emissions to Water
A5: Summary of monitoring undertaken and compliance
A13: Commentary on any specific events
A14: Date & Event | C14: Description
A22: Emissions to Water / Sewer
A23: Parameter | D23: Monitoring Frequency | F23: Limit | G23: Target | H23: Max. | I23: Average

Sheet Air (periodic)
A1: =+'Cover Page'!$B$29 -> Annual Performance Report 2025 | E1: =+'Cover Page'!$B$33 -> Eastcroft EfW Site
A3: Emissions to Air (periodically monitored)
A5: Summary of monitoring undertaken, standards used and compliance | K5: Notes:
A6: Two biannual stack tests were conducted by an appropriately MCERTS accredited test house to test methods specified in the Environment Permit. Line 1 exceeded the ELVs for Dioxins and Furans and Hydrogen Fluoride on the second test and, in accordance with the DIoxin Protocol, passed the repeat analysis. | K6: Template may require adjustment for any bespoke monitoring requirements of permit - please also check that all default ELV values, reference periods and the stated oxygen reference value match those for your plant, and edit if necessary!
A9: Results of emissions to air that are periodically monitored - oxygen reference 11%
A10: Substance | C10: Ref. Period | D10: Emission Limit Value | F10: Average | K10: User to add additional tables as necessary, depending on whether quarterly or bi-annual reporting is required for the compliance year
F11: A1 | G11: A2 | H11: A3 | I11: A4 | J11: A5
A12: Hydrogen fluoride | C12: 1 hr | D12: 1 mg/m3 | F12: 0.98 | G12: 0.145
A13: Cd and Tl and their compounds | C13: 0.5-8hrs | D13: 0.02 mg/m3 | F13: 0.0014 | G13: 0.0015
A14: Hg and its compounds | C14: 0.5-8hrs | D14: 0.02 mg/m3 | F14: 0.00075 | G14: 0.000905
A15: Sb, As, Pb, Cr, Co, Cu, Mn, Ni, V and their compounds | C15: 0.5-8hrs | D15: 0.3 mg/m3 | F15: 0.0195 | G15: 0.026
A16: Dioxins & Furans (I-TEQ) | C16: 6-8hrs | D16: 0.06 ng/m3 | F16: 0.21039 | G16: 0.01205
A17: PCBs (WHO-TEQ Humans / Mammals) | C17: 6-8hrs | D17: None set ng/m3 | F17: 0.037529 | G17: 0.001146
A18: PCBs (WHO-TEQ Fish) | C18: 6-8hrs | D18: None set ng/m3 | F18: 0.00195265 | G18: 6.78e-05
A19: PCBs (WHO-TEQ Birds) | C19: 6-8hrs | D19: None set ng/m3 | F19: 0.08018 | G19: 0.00314
A20: Dioxins & Furans (WHO-TEQ Humans / Mammals) | C20: 6-8hrs | D20: None set ng/m3 | F20: 0.205345 | G20: 0.011
A21: Dioxins & Furans (WHO-TEQ Fish) | C21: 6-8hrs | D21: None set ng/m3 | F21: 0.240355 | G21: 0.0125
A22: Dioxins & Furans (WHO-TEQ Birds) | C22: 6-8hrs | D22: None set ng/m3 | F22: 0.36075 | G22: 0.0215
A23: Anthanthrene | C23: 6-8hrs | D23: None set µg/m3 | F23: 0.01 | G23: 0.01
A24: Benzo(a)anthracene | C24: 6-8hrs | D24: None set µg/m3 | F24: 0.02 | G24: 0.01
A25: Benzo(a)pyrene | C25: 6-8hrs | D25: None set µg/m3 | F25: 0.03 | G25: 0.01
A26: Benzo(b)fluoranthene | C26: 6-8hrs | D26: None set µg/m3 | F26: 0.01 | G26: 0.01
A27: Benzo(b)naptho(2,1-d) thiophene | C27: 6-8hrs | D27: None set µg/m3 | F27: 0.01 | G27: 0.01
A28: Benzo(c)phenanthrene | C28: 6-8hrs | D28: None set µg/m3 | F28: 0.01 | G28: 0.01
A29: Benzo(ghi)perylene | C29: 6-8hrs | D29: None set µg/m3 | F29: 0.04 | G29: 0.01
A30: Benzo(k)fluoranthene | C30: 6-8hrs | D30: None set µg/m3 | F30: 0.02 | G30: 0.01
A31: Cholanthrene | C31: 6-8hrs | D31: None set µg/m3 | F31: 0.01 | G31: 0.01
A32: Chrysene | C32: 6-8hrs | D32: None set µg/m3 | F32: 0.03 | G32: 0.02
A33: Cyclopenta(cd)pyrene | C33: 6-8hrs | D33: None set µg/m3 | F33: 0.04 | G33: 0.01
A34: Dibenzo(ai)pyrene | C34: 6-8hrs | D34: None set µg/m3 | F34: 0.01 | G34: 0.01
A35: Dibenzo(ah)anthracene | C35: 6-8hrs | D35: None set µg/m3 | F35: 0.01 | G35: 0.01
A36: Fluoranthene | C36: 6-8hrs | D36: None set µg/m3 | F36: 0.39 | G36: 0.13
A37: Indeno(123-cd) pyrene | C37: 6-8hrs | D37: None set µg/m3 | F37: 0.02 | G37: 0.01
A38: Naphthalene | C38: 6-8hrs | D38: None set µg/m3 | F38: 11.5 | G38: 22.1
A39: Comments :

Sheet Air (CEMS)
A1: =+'Cover Page'!$B$29 -> Annual Performance Report 2025 | I1: =+'Cover Page'!$B$33 -> Eastcroft EfW Site
A3: Emissions to Air (continuously monitored)
N4: Notes:
A5: Summary of monitoring undertaken, standards used and compliance | N5: Template may require adjustment for any bespoke monitoring requirements of permit
A6: All monitoring undertaken with MCERTs certified CEMs to EN14181 | N6: Please check that all default ELV values match those for your plant and edit if necessary!
N7: Report to 1 decimal place
A11: Results of emissions to air that are continuously monitored (maximum and average values for each line) - oxygen reference 11%
A12: Substance | B12: Reference Period | C12: Emission Limit Value | D12: A1 | F12: A2 | H12: A3 | J12: A4 | L12: A5
D13: Max. | E13: Avg. | F13: Max. | G13: Avg. | H13: Max. | I13: Avg. | J13: Max. | K13: Avg. | L13: Max. | M13: Avg.
A14: Oxides of nitrogen | B14: Daily mean | C14: 180 mg/m3 | D14: 170.9 | E14: 134.9454545 | F14: 158.4 | G14: 119.7916667
B15: ½ hourly mean | C15: 400 mg/m3 | D15: 276.7 | E15: 130.8416667 | F15: 187.5 | G15: 119.85
A16: Particulates | B16: Daily mean | C16: 5 mg/m3 | D16: 0.4 | E16: 0.2181818182 | F16: 2.1 | G16: 0.225
B17: ½ hourly mean | C17: 30 mg/m3 | D17: 1.3 | E17: 0.2416666667 | F17: 3.9 | G17: 0.2583333333
A18: Total Organic Carbon | B18: Daily mean | C18: 10 mg/m3 | D18: 3.2 | E18: 0.2363636364 | F18: 1.5 | G18: 0.1666666667
B19: ½ hourly mean | C19: 20 mg/m3 | D19: 485.5 | E19: 0.55 | F19: 118.3 | G19: 0.2333333333
A20: Hydrogen chloride | B20: Daily mean | C20: 8 mg/m3 | D20: 5.8 | E20: 3.454545455 | F20: 5 | G20: 2.675
B21: ½ hourly mean | C21: 60 mg/m3 | D21: 241.5 | E21: 3.283333333 | F21: 59.8 | G21: 2.725
A22: Sulphur dioxide | B22: Daily mean | C22: 40 mg/m3 | D22: 16.5 | E22: 11.54545455 | F22: 23.7 | G22: 11.50833333
B23: ½ hourly mean | C23: 200 mg/m3 | D23: 193.8 | E23: 10.675 | F23: 139.1 | G23: 11.55833333
A24: Carbon monoxide | B24: Daily mean | C24: 50 mg/m3 | D24: 25.9 | E24: 7.454545455 | F24: 25.1 | G24: 6.633333333
B25: ½ hourly mean * | C25: 100 mg/m3 *
B26: 95%ile 10-min avg * | C26: 150 mg/m3 * | D26: 138.9 | E26: 9.62 | F26: 320.5 | G26: 7.28
A27: Ammonia | B27: Daily mean | C27: 15 mg/m3 | D27: 1.9 | E27: 0.4636363636 | F27: 2.4 | G27: 0.6333333333
A28: * = delete as appropriate, depending on whether your plant has half-hourly or 10-min CO ELVs
A29: Comments :

Sheet HCl
A1: =+'Cover Page'!$B$29 -> Annual Performance Report 2025 | E1: =+'Cover Page'!$B$33 -> Eastcroft EfW Site
A3: Monitoring of Hydrogen Chloride emissions | D3: Whole Installation | G3: See Notes in Cell Q3 | J3: =+A3 -> Monitoring of Hydrogen Chloride emissions | N3: Per Combustion Line | Q3: Notes:
Q4: User to add logic to complete Whole installation, Table A5:G18. From the data in Per Combustion Line, Table J6:O79, subject to No. of lines installed
A5: =+'Cover Page'!C39 -> 2025 | B5: 1/2 Hourly Reference Periods | E5: Daily Reference Periods
A6: mg/Nm3 | B6: 1/2 hourly HCl ELV | C6: Monthly mean of half-hourly averages | D6: Highest half- hourly average | E6: Daily HCl ELV | F6: Monthly mean of daily averages | G6: Highest daily average | J6: =+A5 -> 2025 | K6: mg/Nm3 | L6: Monthly mean of half-hourly averages | M6: Highest half- hourly average | N6: Monthly mean of daily averages | O6: Highest daily average
A7: Jan | B7: 60 | C7: 2.4 | D7: 17.6 | E7: 8 | F7: 2.4 | G7: 3.6 | J7: A1 | K7: Jan | L7: 2.2 | M7: 17.6 | N7: 2.2 | O7: 3.6
A8: Feb | B8: 60 | C8: 2.25 | D8: 7.4 | E8: 8 | F8: 2.25 | G8: 3.2 | K8: Feb | L8: 2.4 | M8: 5.6 | N8: 2.4 | O8: 3.2
A9: Mar | B9: 60 | C9: 3.3 | D9: 14.9 | E9: 8 | F9: 3.25 | G9: 4.3 | K9: Mar | L9: 3.7 | M9: 14.9 | N9: 3.7 | O9: 4.3 | Q9: Whole Installation table A5:G18:
A10: Apr | B10: 60 | C10: 3.45 | D10: 10 | E10: 8 | F10: 3.4 | G10: 4.9 | K10: Apr | L10: 4 | M10: 10 | N10: 4 | O10: 4.9 | Q10: Mean: for 1/2 hourly and daily periods calculate mean of values across all operational combustion lines for the month
A11: May | B11: 60 | C11: 3.2 | D11: 11 | E11: 8 | F11: 3.15 | G11: 4.6 | K11: May | L11: 3.6 | M11: 11 | N11: 3.5 | O11: 4.6
A12: Jun | B12: 60 | C12: 2.6 | D12: 27.9 | E12: 8 | F12: 2.55 | G12: 3.8 | K12: Jun | L12: 2.8 | M12: 27.9 | N12: 2.8 | O12: 3.8
A13: Jul | B13: 60 | C13: 1.8 | D13: 4.6 | E13: 8 | F13: 1.3 | G13: 3.5 | K13: Jul | L13: 1 | M13: 2.2 | Q13: Maximum: for 1/2 hourly and daily periods use the highest value across all operational combustion lines for the month
A14: Aug | B14: 60 | C14: 3 | D14: 28.9 | E14: 8 | F14: 3.1 | G14: 5.7 | K14: Aug | L14: 3.4 | M14: 28.9 | N14: 3.7 | O14: 5.7
A15: Sep | B15: 60 | C15: 4.15 | D15: 241.5 | E15: 8 | F15: 3.8 | G15: 5.8 | K15: Sep | L15: 5.3 | M15: 241.5 | N15: 4.7 | O15: 5.8
A16: Oct | B16: 60 | C16: 3.7 | D16: 17 | E16: 8 | F16: 3.65 | G16: 5.1 | K16: Oct | L16: 4.2 | M16: 17 | N16: 4.2 | O16: 5.1
A17: Nov | B17: 60 | C17: 3.05 | D17: 59.8 | E17: 8 | F17: 3.05 | G17: 5 | K17: Nov | L17: 3.3 | M17: 38.6 | N17: 3.3 | O17: 4.6
A18: Dec | B18: 60 | C18: 3.15 | D18: 17.7 | E18: 8 | F18: 3.15 | G18: 5.6 | K18: Dec | L18: 3.5 | M18: 17.7 | N18: 3.5 | O18: 5.6
K19: Annual | L19: =AVERAGE(L7:L18) -> 3.283333333 | M19: =MAX(M7:M18) -> 241.5 | N19: =AVERAGE(N7:N18) -> 3.454545455 | O19: =MAX(O7:O18) -> 5.8
J21: =+A5 -> 2025 | K21: mg/Nm3 | L21: Monthly mean of half-hourly averages | M21: Highest half- hourly average | N21: Monthly mean of daily averages | O21: Highest daily average
J22: A2 | K22: Jan | L22: 2.6 | M22: 5 | N22: 2.6 | O22: 3.2
K23: Feb | L23: 2.1 | M23: 7.4 | N23: 2.1 | O23: 2.8
K24: Mar | L24: 2.9 | M24: 5.3 | N24: 2.8 | O24: 3.6
K25: Apr | L25: 2.9 | M25: 8.4 | N25: 2.8 | O25: 3.4
K26: May | L26: 2.8 | M26: 7.7 | N26: 2.8 | O26: 3.4
K27: Jun | L27: 2.4 | M27: 6.4 | N27: 2.3 | O27: 3.1
K28: Jul | L28: 2.6 | M28: 4.6 | N28: 2.6 | O28: 3.5
K29: Aug | L29: 2.6 | M29: 28.1 | N29: 2.5 | O29: 3.4
K30: Sep | L30: 3 | M30: 20.8 | N30: 2.9 | O30: 4
K31: Oct | L31: 3.2 | M31: 14.6 | N31: 3.1 | O31: 3.9
K32: Nov | L32: 2.8 | M32: 59.8 | N32: 2.8 | O32: 5
K33: Dec | L33: 2.8 | M33: 6.3 | N33: 2.8 | O33: 3.3
K34: Annual | L34: =AVERAGE(L22:L33) -> 2.725 | M34: =MAX(M22:M33) -> 59.8 | N34: =AVERAGE(N22:N33) -> 2.675 | O34: =MAX(O22:O33) -> 5
J36: =+A5 -> 2025 | K36: mg/Nm3 | L36: Monthly mean of half-hourly averages | M36: Highest half- hourly average | N36: Monthly mean of daily averages | O36: Highest daily average
J37: A3 | K37: Jan
K38: Feb
K39: Mar
K40: Apr
K41: May
K42: Jun
K43: Jul
K44: Aug
K45: Sep
K46: Oct
K47: Nov
A48: Comments : | K48: Dec
A49: Line 1 was off for all of July except for a few hours on the 31st which led to no valid days for that line | K49: Annual | L49: =AVERAGE(L37:L48) ->  | M49: =MAX(M37:M48) -> 0 | N49: =AVERAGE(N37:N48) ->  | O49: =MAX(O37:O48) -> 0
J51: =+A5 -> 2025 | K51: mg/Nm3 | L51: Monthly mean of half-hourly averages | M51: Highest half- hourly average | N51: Monthly mean of daily averages | O51: Highest daily average
J52: A4 | K52: Jan
K53: Feb
K54: Mar
K55: Apr
K56: May
K57: Jun
K58: Jul
K59: Aug
K60: Sep
K61: Oct
K62: Nov
K63: Dec
K64: Annual | L64: =AVERAGE(L52:L63) ->  | M64: =MAX(M52:M63) -> 0 | N64: =AVERAGE(N52:N63) ->  | O64: =MAX(O52:O63) -> 0
J66: =+A5 -> 2025 | K66: mg/Nm3 | L66: Monthly mean of half-hourly averages | M66: Highest half- hourly average | N66: Monthly mean of daily averages | O66: Highest daily average
J67: A5 | K67: Jan
K68: Feb
K69: Mar
K70: Apr
K71: May
K72: Jun
K73: Jul
K74: Aug
K75: Sep
K76: Oct
K77: Nov
K78: Dec
K79: Annual | L79: =AVERAGE(L67:L78) ->  | M79: =MAX(M67:M78) -> 0 | N79: =AVERAGE(N67:N78) ->  | O79: =MAX(O67:O78) -> 0

Sheet SO2
A1: =+'Cover Page'!$B$29 -> Annual Performance Report 2025 | E1: =+'Cover Page'!$B$33 -> Eastcroft EfW Site
A3: Monitoring of Sulphur dioxide emissions | D3: Whole Installation | G3: See Notes in Cell Q3 | J3: =+A3 -> Monitoring of Sulphur dioxide emissions | N3: Per Combustion Line | Q3: Notes:
Q4: User to add logic to complete Whole installation, Table A5:G18. From the data in Per Combustion Line, Table J6:O79, subject to No. of lines installed
A5: =+'Cover Page'!C39 -> 2025 | B5: 1/2 Hourly Reference Periods | E5: Daily Reference Periods
A6: mg/Nm3 | B6: 1/2 hourly SO2 ELV | C6: Monthly mean of half-hourly averages | D6: Highest half- hourly average | E6: Daily SO2 ELV | F6: Monthly mean of daily averages | G6: Highest daily average | J6: =+A5 -> 2025 | K6: mg/Nm3 | L6: Monthly mean of half-hourly averages | M6: Highest half- hourly average | N6: Monthly mean of daily averages | O6: Highest daily average
A7: Jan | B7: 200 | C7: 15.95 | D7: 43.1 | E7: 40 | F7: 16 | G7: 21.9 | J7: A1 | K7: Jan | L7: 15.2 | M7: 36.9 | N7: 15.2 | O7: 20.5
A8: Feb | B8: 200 | C8: 17.55 | D8: 56.3 | E8: 40 | F8: 17.5 | G8: 23.7 | K8: Feb | L8: 16.5 | M8: 56.3 | N8: 16.5 | O8: 19.9
A9: Mar | B9: 200 | C9: 10.7 | D9: 64.4 | E9: 40 | F9: 10.65 | G9: 18.1 | K9: Mar | L9: 12 | M9: 64.4 | N9: 12 | O9: 16.9 | Q9: Whole Installation table A5:G18:
A10: Apr | B10: 200 | C10: 8.9 | D10: 36 | E10: 40 | F10: 8.9 | G10: 14.6 | K10: Apr | L10: 11.5 | M10: 35.8 | N10: 11.5 | O10: 14.6 | Q10: Mean: for 1/2 hourly and daily periods calculate mean of values across all operational combustion lines for the month
A11: May | B11: 200 | C11: 9.25 | D11: 93.4 | E11: 40 | F11: 9.25 | G11: 15.6 | K11: May | L11: 12.3 | M11: 93.4 | N11: 12.3 | O11: 15.6
A12: Jun | B12: 200 | C12: 9.4 | D12: 64.2 | E12: 40 | F12: 9.35 | G12: 13.5 | K12: Jun | L12: 11.3 | M12: 47.3 | N12: 11.2 | O12: 13.5
A13: Jul | B13: 200 | C13: 9 | D13: 66.8 | E13: 40 | F13: 8.7 | G13: 22.6 | K13: Jul | L13: 0.5 | M13: 1.9 | N13: - | O13: - | Q13: Maximum: for 1/2 hourly and daily periods use the highest value across all operational combustion lines for the month
A14: Aug | B14: 200 | C14: 13.15 | D14: 71.3 | E14: 40 | F14: 13.15 | G14: 21.5 | K14: Aug | L14: 14 | M14: 71.3 | N14: 14.2 | O14: 18.2
A15: Sep | B15: 200 | C15: 10.3 | D15: 193.8 | E15: 40 | F15: 10 | G15: 17.9 | K15: Sep | L15: 10 | M15: 193.8 | N15: 9.4 | O15: 17.9
A16: Oct | B16: 200 | C16: 9.75 | D16: 90.4 | E16: 40 | F16: 9.75 | G16: 16.5 | K16: Oct | L16: 8.5 | M16: 47.3 | N16: 8.5 | O16: 13
A17: Nov | B17: 200 | C17: 8.8 | D17: 139.1 | E17: 40 | F17: 8.7 | G17: 17.5 | K17: Nov | L17: 7.3 | M17: 55 | N17: 7.2 | O17: 12
A18: Dec | B18: 200 | C18: 10.65 | D18: 48.7 | E18: 40 | F18: 10.6 | G18: 18 | K18: Dec | L18: 9 | M18: 47.1 | N18: 9 | O18: 13.2
K19: Annual | L19: =AVERAGE(L7:L18) -> 10.675 | M19: =MAX(M7:M18) -> 193.8 | N19: =AVERAGE(N7:N18) -> 11.54545455 | O19: =MAX(O7:O18) -> 20.5
J21: =+A5 -> 2025 | K21: mg/Nm3 | L21: Monthly mean of half-hourly averages | M21: Highest half- hourly average | N21: Monthly mean of daily averages | O21: Highest daily average
J22: A2 | K22: Jan | L22: 16.7 | M22: 43.1 | N22: 16.8 | O22: 21.9
K23: Feb | L23: 18.6 | M23: 51.3 | N23: 18.5 | O23: 23.7
K24: Mar | L24: 9.4 | M24: 48.1 | N24: 9.3 | O24: 18.1
K25: Apr | L25: 6.3 | M25: 36 | N25: 6.3 | O25: 13.5
K26: May | L26: 6.2 | M26: 30.9 | N26: 6.2 | O26: 13.2
K27: Jun | L27: 7.5 | M27: 64.2 | N27: 7.5 | O27: 11.3
K28: Jul | L28: 17.5 | M28: 66.8 | N28: 17.4 | O28: 22.6
K29: Aug | L29: 12.3 | M29: 65.6 | N29: 12.1 | O29: 21.5
K30: Sep | L30: 10.6 | M30: 135.1 | N30: 10.6 | O30: 17.3
K31: Oct | L31: 11 | M31: 90.4 | N31: 11 | O31: 16.5
K32: Nov | L32: 10.3 | M32: 139.1 | N32: 10.2 | O32: 17.5
K33: Dec | L33: 12.3 | M33: 48.7 | N33: 12.2 | O33: 18
K34: Annual | L34: =AVERAGE(L22:L33) -> 11.55833333 | M34: =MAX(M22:M33) -> 139.1 | N34: =AVERAGE(N22:N33) -> 11.50833333 | O34: =MAX(O22:O33) -> 23.7
J36: =+A5 -> 2025 | K36: mg/Nm3 | L36: Monthly mean of half-hourly averages | M36: Highest half- hourly average | N36: Monthly mean of daily averages | O36: Highest daily average
J37: A3 | K37: Jan
K38: Feb
K39: Mar
K40: Apr
K41: May
K42: Jun
K43: Jul
K44: Aug
K45: Sep
K46: Oct
K47: Nov
A48: Comments : | K48: Dec
A49: Line 1 was off for all of July except for a few hours on the 31st which led to no valid days for that line | K49: Annual | L49: =AVERAGE(L37:L48) ->  | M49: =MAX(M37:M48) -> 0 | N49: =AVERAGE(N37:N48) ->  | O49: =MAX(O37:O48) -> 0
J51: =+A5 -> 2025 | K51: mg/Nm3 | L51: Monthly mean of half-hourly averages | M51: Highest half- hourly average | N51: Monthly mean of daily averages | O51: Highest daily average
J52: A4 | K52: Jan
K53: Feb
K54: Mar
K55: Apr
K56: May
K57: Jun
K58: Jul
K59: Aug
K60: Sep
K61: Oct
K62: Nov
K63: Dec
K64: Annual | L64: =AVERAGE(L52:L63) ->  | M64: =MAX(M52:M63) -> 0 | N64: =AVERAGE(N52:N63) ->  | O64: =MAX(O52:O63) -> 0
J66: =+A5 -> 2025 | K66: mg/Nm3 | L66: Monthly mean of half-hourly averages | M66: Highest half- hourly average | N66: Monthly mean of daily averages | O66: Highest daily average
J67: A5 | K67: Jan
K68: Feb
K69: Mar
K70: Apr
K71: May
K72: Jun
K73: Jul
K74: Aug
K75: Sep
K76: Oct
K77: Nov
K78: Dec
K79: Annual | L79: =AVERAGE(L67:L78) ->  | M79: =MAX(M67:M78) -> 0 | N79: =AVERAGE(N67:N78) ->  | O79: =MAX(O67:O78) -> 0

Sheet NOx
A1: =+'Cover Page'!$B$29 -> Annual Performance Report 2025 | E1: =+'Cover Page'!$B$33 -> Eastcroft EfW Site
A3: Monitoring of Oxides of Nitrogen emissions | D3: Whole Installation | G3: See Notes in Cell Q3 | J3: =+A3 -> Monitoring of Oxides of Nitrogen emissions | N3: Per Combustion Line | Q3: Notes:
Q4: User to add logic to complete Whole installation, Table A5:G18. From the data in Per Combustion Line, Table J6:O79, subject to No. of lines installed
A5: =+'Cover Page'!C39 -> 2025 | B5: 1/2 Hourly Reference Periods | E5: Daily Reference Periods
A6: mg/Nm3 | B6: 1/2 hourly NOx ELV | C6: Monthly mean of half-hourly averages | D6: Highest half- hourly average | E6: Daily NOx ELV | F6: Monthly mean of daily averages | G6: Highest daily average | J6: =+A5 -> 2025 | K6: mg/Nm3 | L6: Monthly mean of half-hourly averages | M6: Highest half- hourly average | N6: Monthly mean of daily averages | O6: Highest daily average
A7: Jan | B7: 400 | C7: 124.85 | D7: 185.3 | E7: 180 | F7: 125.25 | G7: 145.4 | J7: A1 | K7: Jan | L7: 131.4 | M7: 185.3 | N7: 131.7 | O7: 145.4
A8: Feb | B8: 400 | C8: 118.3 | D8: 183.4 | E8: 180 | F8: 118.2 | G8: 142.5 | K8: Feb | L8: 124.2 | M8: 171.5 | N8: 124.1 | O8: 142.5
A9: Mar | B9: 400 | C9: 117.3 | D9: 243.1 | E9: 180 | F9: 117.35 | G9: 143.3 | K9: Mar | L9: 124.6 | M9: 243.1 | N9: 124.5 | O9: 143.3 | Q9: Whole Installation table A5:G18:
A10: Apr | B10: 400 | C10: 118.2 | D10: 184.2 | E10: 180 | F10: 118.35 | G10: 132.6 | K10: Apr | L10: 124.7 | M10: 184.2 | N10: 125 | O10: 132.6 | Q10: Mean: for 1/2 hourly and daily periods calculate mean of values across all operational combustion lines for the month
A11: May | B11: 400 | C11: 120.95 | D11: 202.2 | E11: 180 | F11: 120.85 | G11: 143.4 | K11: May | L11: 129.9 | M11: 202.2 | N11: 129.8 | O11: 143.4
A12: Jun | B12: 400 | C12: 123.75 | D12: 192.1 | E12: 180 | F12: 123.75 | G12: 144.2 | K12: Jun | L12: 136.2 | M12: 192.1 | N12: 136.3 | O12: 144.2
A13: Jul | B13: 400 | C13: 105.85 | D13: 185.1 | E13: 180 | F13: 63.05 | G13: 158.4 | K13: Jul | L13: 85 | M13: 93.3 | N13: - | O13: - | Q13: Maximum: for 1/2 hourly and daily periods use the highest value across all operational combustion lines for the month
A14: Aug | B14: 400 | C14: 135.15 | D14: 214.2 | E14: 180 | F14: 134.8 | G14: 170.9 | K14: Aug | L14: 146.4 | M14: 214.2 | N14: 146.2 | O14: 170.9
A15: Sep | B15: 400 | C15: 128.5 | D15: 276.7 | E15: 180 | F15: 128 | G15: 149.7 | K15: Sep | L15: 136 | M15: 276.7 | N15: 135 | O15: 149.7
A16: Oct | B16: 400 | C16: 131.85 | D16: 194.9 | E16: 180 | F16: 131.8 | G16: 150.6 | K16: Oct | L16: 138.5 | M16: 194.9 | N16: 138.4 | O16: 150.6
A17: Nov | B17: 400 | C17: 139.95 | D17: 191.6 | E17: 180 | F17: 139.95 | G17: 155.3 | K17: Nov | L17: 144.6 | M17: 191.6 | N17: 144.6 | O17: 155.3
A18: Dec | B18: 400 | C18: 139.5 | D18: 199.9 | E18: 180 | F18: 139.6 | G18: 169.3 | K18: Dec | L18: 148.6 | M18: 199.9 | N18: 148.8 | O18: 169.3
K19: Annual | L19: =AVERAGE(L7:L18) -> 130.8416667 | M19: =MAX(M7:M18) -> 276.7 | N19: =AVERAGE(N7:N18) -> 134.9454545 | O19: =MAX(O7:O18) -> 170.9
J21: =+A5 -> 2025 | K21: mg/Nm3 | L21: Monthly mean of half-hourly averages | M21: Highest half- hourly average | N21: Monthly mean of daily averages | O21: Highest daily average
J22: A2 | K22: Jan | L22: 118.3 | M22: 151.3 | N22: 118.8 | O22: 127.9
K23: Feb | L23: 112.4 | M23: 183.4 | N23: 112.3 | O23: 129.7
K24: Mar | L24: 110 | M24: 153 | N24: 110.2 | O24: 121.4
K25: Apr | L25: 111.7 | M25: 182.3 | N25: 111.7 | O25: 130
K26: May | L26: 112 | M26: 164.9 | N26: 111.9 | O26: 126.5
K27: Jun | L27: 111.3 | M27: 183.2 | N27: 111.2 | O27: 127.4
K28: Jul | L28: 126.7 | M28: 185.1 | N28: 126.1 | O28: 158.4
K29: Aug | L29: 123.9 | M29: 166.4 | N29: 123.4 | O29: 140.4
K30: Sep | L30: 121 | M30: 156.6 | N30: 121 | O30: 131.2
K31: Oct | L31: 125.2 | M31: 168.1 | N31: 125.2 | O31: 136.3
K32: Nov | L32: 135.3 | M32: 187.5 | N32: 135.3 | O32: 144.3
K33: Dec | L33: 130.4 | M33: 176.3 | N33: 130.4 | O33: 145.2
K34: Annual | L34: =AVERAGE(L22:L33) -> 119.85 | M34: =MAX(M22:M33) -> 187.5 | N34: =AVERAGE(N22:N33) -> 119.7916667 | O34: =MAX(O22:O33) -> 158.4
J36: =+A5 -> 2025 | K36: mg/Nm3 | L36: Monthly mean of half-hourly averages | M36: Highest half- hourly average | N36: Monthly mean of daily averages | O36: Highest daily average
J37: A3 | K37: Jan
K38: Feb
K39: Mar
K40: Apr
K41: May
K42: Jun
K43: Jul
K44: Aug
K45: Sep
K46: Oct
K47: Nov
A48: Comments : | K48: Dec
A49: Line 1 was off for all of July except for a few hours on the 31st which led to no valid days for that line | K49: Annual | L49: =AVERAGE(L37:L48) ->  | M49: =MAX(M37:M48) -> 0 | N49: =AVERAGE(N37:N48) ->  | O49: =MAX(O37:O48) -> 0
J51: =+A5 -> 2025 | K51: mg/Nm3 | L51: Monthly mean of half-hourly averages | M51: Highest half- hourly average | N51: Monthly mean of daily averages | O51: Highest daily average
J52: A4 | K52: Jan
K53: Feb
K54: Mar
K55: Apr
K56: May
K57: Jun
K58: Jul
K59: Aug
K60: Sep
K61: Oct
K62: Nov
K63: Dec
K64: Annual | L64: =AVERAGE(L52:L63) ->  | M64: =MAX(M52:M63) -> 0 | N64: =AVERAGE(N52:N63) ->  | O64: =MAX(O52:O63) -> 0
J66: =+A5 -> 2025 | K66: mg/Nm3 | L66: Monthly mean of half-hourly averages | M66: Highest half- hourly average | N66: Monthly mean of daily averages | O66: Highest daily average
J67: A5 | K67: Jan
K68: Feb
K69: Mar
K70: Apr
K71: May
K72: Jun
K73: Jul
K74: Aug
K75: Sep
K76: Oct
K77: Nov
K78: Dec
K79: Annual | L79: =AVERAGE(L67:L78) ->  | M79: =MAX(M67:M78) -> 0 | N79: =AVERAGE(N67:N78) ->  | O79: =MAX(O67:O78) -> 0

Sheet TOC
A1: =+'Cover Page'!$B$29 -> Annual Performance Report 2025 | E1: =+'Cover Page'!$B$33 -> Eastcroft EfW Site
A3: Monitoring of Total organic carbon emissions | D3: Whole Installation | G3: See Notes in Cell Q3 | J3: =+A3 -> Monitoring of Total organic carbon emissions | N3: Per Combustion Line | Q3: Notes:
Q4: User to add logic to complete Whole installation, Table A5:G18. From the data in Per Combustion Line, Table J6:O79, subject to No. of lines installed
A5: =+'Cover Page'!C39 -> 2025 | B5: 1/2 Hourly Reference Periods | E5: Daily Reference Periods
A6: mg/Nm3 | B6: 1/2 hourly TOC ELV | C6: Monthly mean of half-hourly averages | D6: Highest half- hourly average | E6: Daily TOC ELV | F6: Monthly mean of daily averages | G6: Highest daily average | J6: =+A5 -> 2025 | K6: mg/Nm3 | L6: Monthly mean of half-hourly averages | M6: Highest half- hourly average | N6: Monthly mean of daily averages | O6: Highest daily average
A7: Jan | B7: 20 | C7: 0.25 | D7: 52.6 | E7: 10 | F7: 0.25 | G7: 1.3 | J7: A1 | K7: Jan | L7: 0.3 | M7: 34.7 | N7: 0.3 | O7: 0.9
A8: Feb | B8: 10 | C8: 0.25 | D8: 69.2 | E8: 10 | F8: 0.25 | G8: 1.5 | K8: Feb | L8: 0.3 | M8: 44.3 | N8: 0.3 | O8: 1.4
A9: Mar | B9: 10 | C9: 0.25 | D9: 145.1 | E9: 10 | F9: 0.25 | G9: 3.2 | K9: Mar | L9: 0.3 | M9: 145.1 | N9: 0.3 | O9: 3.2 | Q9: Whole Installation table A5:G18:
A10: Apr | B10: 10 | C10: 0.25 | D10: 28.5 | E10: 10 | F10: 0.2 | G10: 1.3 | K10: Apr | L10: 0.3 | M10: 24.3 | N10: 0.3 | O10: 1.3 | Q10: Mean: for 1/2 hourly and daily periods calculate mean of values across all operational combustion lines for the month
A11: May | B11: 10 | C11: 0.35 | D11: 485.5 | E11: 10 | F11: 0.15 | G11: 0.9 | K11: May | L11: 0.6 | M11: 485.5 | N11: 0.2 | O11: 0.7
A12: Jun | B12: 10 | C12: 0.2 | D12: 30.9 | E12: 10 | F12: 0.15 | G12: 0.9 | K12: Jun | L12: 0.3 | M12: 30.9 | N12: 0.3 | O12: 0.9
A13: Jul | B13: 10 | C13: 2.05 | D13: 118.3 | E13: 10 | F13: 0.15 | G13: 1.4 | K13: Jul | L13: 3.3 | M13: 11.5 | N13: 0 | O13: 0 | Q13: Maximum: for 1/2 hourly and daily periods use the highest value across all operational combustion lines for the month
A14: Aug | B14: 10 | C14: 0.4 | D14: 43.8 | E14: 10 | F14: 0.25 | G14: 1.7 | K14: Aug | L14: 0.5 | M14: 43.8 | N14: 0.3 | O14: 1.7
A15: Sep | B15: 10 | C15: 0.2 | D15: 42.2 | E15: 10 | F15: 0.2 | G15: 1.1 | K15: Sep | L15: 0.2 | M15: 42.2 | N15: 0.2 | O15: 1.1
A16: Oct | B16: 10 | C16: 0.2 | D16: 41.9 | E16: 10 | F16: 0.15 | G16: 1.2 | K16: Oct | L16: 0.2 | M16: 13.7 | N16: 0.1 | O16: 1
A17: Nov | B17: 10 | C17: 0.1 | D17: 43.1 | E17: 10 | F17: 0.1 | G17: 1 | K17: Nov | L17: 0.1 | M17: 20.2 | N17: 0.1 | O17: 0.5
A18: Dec | B18: 10 | C18: 0.2 | D18: 27.2 | E18: 10 | F18: 0.2 | G18: 0.8 | K18: Dec | L18: 0.2 | M18: 27.2 | N18: 0.2 | O18: 0.5
K19: Annual | L19: =AVERAGE(L7:L18) -> 0.55 | M19: =MAX(M7:M18) -> 485.5 | N19: =AVERAGE(N7:N18) -> 0.2166666667 | O19: =MAX(O7:O18) -> 3.2
J21: =+A5 -> 2025 | K21: mg/Nm3 | L21: Monthly mean of half-hourly averages | M21: Highest half- hourly average | N21: Monthly mean of daily averages | O21: Highest daily average
J22: A2 | K22: Jan | L22: 0.2 | M22: 52.6 | N22: 0.2 | O22: 1.3
K23: Feb | L23: 0.2 | M23: 69.2 | N23: 0.2 | O23: 1.5
K24: Mar | L24: 0.2 | M24: 32.3 | N24: 0.2 | O24: 1.2
K25: Apr | L25: 0.2 | M25: 28.5 | N25: 0.1 | O25: 0.9
K26: May | L26: 0.1 | M26: 41 | N26: 0.1 | O26: 0.9
K27: Jun | L27: 0.1 | M27: 17.8 | N27: 0 | O27: 0.4
K28: Jul | L28: 0.8 | M28: 118.3 | N28: 0.3 | O28: 1.4
K29: Aug | L29: 0.3 | M29: 34.1 | N29: 0.2 | O29: 0.8
K30: Sep | L30: 0.2 | M30: 41.7 | N30: 0.2 | O30: 0.9
K31: Oct | L31: 0.2 | M31: 41.9 | N31: 0.2 | O31: 1.2
K32: Nov | L32: 0.1 | M32: 43.1 | N32: 0.1 | O32: 1
K33: Dec | L33: 0.2 | M33: 22.9 | N33: 0.2 | O33: 0.8
K34: Annual | L34: =AVERAGE(L22:L33) -> 0.2333333333 | M34: =MAX(M22:M33) -> 118.3 | N34: =AVERAGE(N22:N33) -> 0.1666666667 | O34: =MAX(O22:O33) -> 1.5
J36: =+A5 -> 2025 | K36: mg/Nm3 | L36: Monthly mean of half-hourly averages | M36: Highest half- hourly average | N36: Monthly mean of daily averages | O36: Highest daily average
J37: A3 | K37: Jan
K38: Feb
K39: Mar
K40: Apr
K41: May
K42: Jun
K43: Jul
K44: Aug
K45: Sep
K46: Oct
K47: Nov
A48: Comments : | K48: Dec
A49: From February onwards the permit was varied to a 30 minute ELV of 10 with a compliance requirement of 97% so above data is only meaningful for compliance purposes for daily figures and January half-hour figures. Line 1 was off for all of July except for a few hours on the 31st which led to no valid days for that line. | K49: Annual | L49: =AVERAGE(L37:L48) ->  | M49: =MAX(M37:M48) -> 0 | N49: =AVERAGE(N37:N48) ->  | O49: =MAX(O37:O48) -> 0
J51: =+A5 -> 2025 | K51: mg/Nm3 | L51: Monthly mean of half-hourly averages | M51: Highest half- hourly average | N51: Monthly mean of daily averages | O51: Highest daily average
J52: A4 | K52: Jan
K53: Feb
K54: Mar
K55: Apr
K56: May
K57: Jun
K58: Jul
K59: Aug
K60: Sep
K61: Oct
K62: Nov
K63: Dec
K64: Annual | L64: =AVERAGE(L52:L63) ->  | M64: =MAX(M52:M63) -> 0 | N64: =AVERAGE(N52:N63) ->  | O64: =MAX(O52:O63) -> 0
J66: =+A5 -> 2025 | K66: mg/Nm3 | L66: Monthly mean of half-hourly averages | M66: Highest half- hourly average | N66: Monthly mean of daily averages | O66: Highest daily average
J67: A5 | K67: Jan
K68: Feb
K69: Mar
K70: Apr
K71: May
K72: Jun
K73: Jul
K74: Aug
K75: Sep
K76: Oct
K77: Nov
K78: Dec
K79: Annual | L79: =AVERAGE(L67:L78) ->  | M79: =MAX(M67:M78) -> 0 | N79: =AVERAGE(N67:N78) ->  | O79: =MAX(O67:O78) -> 0

Sheet Particulates
A1: =+'Cover Page'!$B$29 -> Annual Performance Report 2025 | E1: =+'Cover Page'!$B$33 -> Eastcroft EfW Site
A3: Monitoring of Particulate matter emissions | D3: Whole Installation | G3: See Notes in Cell Q3 | J3: =+A3 -> Monitoring of Particulate matter emissions | N3: Per Combustion Line | Q3: Notes:
A5: =+'Cover Page'!C39 -> 2025 | B5: 1/2 Hourly Reference Periods | E5: Daily Reference Periods | Q5: User to add logic to complete Whole installation, Table A5:G18. From the data in Per Combustion Line, Table J6:O79, subject to No. of lines installed
A6: mg/Nm3 | B6: 1/2 hourly PM ELV | C6: Monthly mean of half-hourly averages | D6: Highest half- hourly average | E6: Daily PM ELV | F6: Monthly mean of daily averages | G6: Highest daily average | J6: =+A5 -> 2025 | K6: mg/Nm3 | L6: Monthly mean of half-hourly averages | M6: Highest half- hourly average | N6: Monthly mean of daily averages | O6: Highest daily average
A7: Jan | B7: 30 | C7: 0.3 | D7: 0.8 | E7: 5 | F7: 0.3 | G7: 0.4 | J7: A1 | K7: Jan | L7: 0.4 | M7: 0.8 | N7: 0.4 | O7: 0.4
A8: Feb | B8: 30 | C8: 0.25 | D8: 1.8 | E8: 5 | F8: 0.25 | G8: 0.4 | K8: Feb | L8: 0.3 | M8: 1 | N8: 0.3 | O8: 0.4
A9: Mar | B9: 30 | C9: 0.2 | D9: 1.3 | E9: 5 | F9: 0.2 | G9: 0.3 | K9: Mar | L9: 0.2 | M9: 1.3 | N9: 0.2 | O9: 0.3
A10: Apr | B10: 30 | C10: 0.2 | D10: 0.3 | E10: 5 | F10: 0.2 | G10: 0.3 | K10: Apr | L10: 0.2 | M10: 0.3 | N10: 0.2 | O10: 0.3 | Q10: Whole Installation table A5:G18:
A11: May | B11: 30 | C11: 0.2 | D11: 0.3 | E11: 5 | F11: 0.15 | G11: 0.3 | K11: May | L11: 0.2 | M11: 0.3 | N11: 0.2 | O11: 0.3 | Q11: Mean: for 1/2 hourly and daily periods calculate mean of values across all operational combustion lines for the month
A12: Jun | B12: 30 | C12: 0.2 | D12: 0.6 | E12: 5 | F12: 0.15 | G12: 0.3 | K12: Jun | L12: 0.2 | M12: 0.6 | N12: 0.2 | O12: 0.3
A13: Jul | B13: 30 | C13: 0.2 | D13: 1.4 | E13: 5 | F13: 0.05 | G13: 0.2 | K13: Jul | L13: 0.2 | M13: 0.4 | N13: - | O13: -
A14: Aug | B14: 30 | C14: 0.2 | D14: 0.4 | E14: 5 | F14: 0.15 | G14: 0.3 | K14: Aug | L14: 0.2 | M14: 0.4 | N14: 0.1 | O14: 0.2 | Q14: Maximum: for 1/2 hourly and daily periods use the highest value across all operational combustion lines for the month
A15: Sep | B15: 30 | C15: 0.3 | D15: 3.9 | E15: 5 | F15: 0.3 | G15: 2.1 | K15: Sep | L15: 0.2 | M15: 0.5 | N15: 0.2 | O15: 0.3
A16: Oct | B16: 30 | C16: 0.3 | D16: 1.4 | E16: 5 | F16: 0.2 | G16: 0.6 | K16: Oct | L16: 0.3 | M16: 0.5 | N16: 0.2 | O16: 0.3
A17: Nov | B17: 30 | C17: 0.35 | D17: 1.6 | E17: 5 | F17: 0.35 | G17: 1.1 | K17: Nov | L17: 0.2 | M17: 0.5 | N17: 0.2 | O17: 0.3
A18: Dec | B18: 30 | C18: 0.3 | D18: 1.5 | E18: 5 | F18: 0.25 | G18: 0.7 | K18: Dec | L18: 0.3 | M18: 0.5 | N18: 0.2 | O18: 0.3
K19: Annual | L19: =AVERAGE(L7:L18) -> 0.2416666667 | M19: =MAX(M7:M18) -> 1.3 | N19: =AVERAGE(N7:N18) -> 0.2181818182 | O19: =MAX(O7:O18) -> 0.4
J21: =+A5 -> 2025 | K21: mg/Nm3 | L21: Monthly mean of half-hourly averages | M21: Highest half- hourly average | N21: Monthly mean of daily averages | O21: Highest daily average
J22: A2 | K22: Jan | L22: ='[1]Input Grid'!L58 -> 0.2 | M22: ='[1]Input Grid'!M58 -> 0.3 | N22: ='[1]Input Grid'!O58 -> 0.2 | O22: ='[1]Input Grid'!P58 -> 0.2
K23: Feb | L23: ='[1]Input Grid'!L59 -> 0.2 | M23: ='[1]Input Grid'!M59 -> 1.8 | N23: ='[1]Input Grid'!O59 -> 0.2 | O23: ='[1]Input Grid'!P59 -> 0.3
K24: Mar | L24: ='[1]Input Grid'!L60 -> 0.2 | M24: ='[1]Input Grid'!M60 -> 0.4 | N24: ='[1]Input Grid'!O60 -> 0.2 | O24: ='[1]Input Grid'!P60 -> 0.2
K25: Apr | L25: ='[1]Input Grid'!L61 -> 0.2 | M25: ='[1]Input Grid'!M61 -> 0.3 | N25: ='[1]Input Grid'!O61 -> 0.2 | O25: ='[1]Input Grid'!P61 -> 0.2
K26: May | L26: ='[1]Input Grid'!L62 -> 0.2 | M26: ='[1]Input Grid'!M62 -> 0.3 | N26: ='[1]Input Grid'!O62 -> 0.1 | O26: ='[1]Input Grid'!P62 -> 0.2
K27: Jun | L27: ='[1]Input Grid'!L63 -> 0.2 | M27: ='[1]Input Grid'!M63 -> 0.4 | N27: ='[1]Input Grid'!O63 -> 0.1 | O27: ='[1]Input Grid'!P63 -> 0.2
K28: Jul | L28: ='[1]Input Grid'!L64 -> 0.2 | M28: ='[1]Input Grid'!M64 -> 1.4 | N28: ='[1]Input Grid'!O64 -> 0.1 | O28: ='[1]Input Grid'!P64 -> 0.2
K29: Aug | L29: ='[1]Input Grid'!L65 -> 0.2 | M29: ='[1]Input Grid'!M65 -> 0.3 | N29: ='[1]Input Grid'!O65 -> 0.2 | O29: ='[1]Input Grid'!P65 -> 0.3
K30: Sep | L30: ='[1]Input Grid'!L66 -> 0.4 | M30: ='[1]Input Grid'!M66 -> 3.9 | N30: ='[1]Input Grid'!O66 -> 0.4 | O30: ='[1]Input Grid'!P66 -> 2.1
K31: Oct | L31: ='[1]Input Grid'!L67 -> 0.3 | M31: ='[1]Input Grid'!M67 -> 1.4 | N31: ='[1]Input Grid'!O67 -> 0.2 | O31: ='[1]Input Grid'!P67 -> 0.6
K32: Nov | L32: ='[1]Input Grid'!L68 -> 0.5 | M32: ='[1]Input Grid'!M68 -> 1.6 | N32: ='[1]Input Grid'!O68 -> 0.5 | O32: ='[1]Input Grid'!P68 -> 1.1
K33: Dec | L33: ='[1]Input Grid'!L69 -> 0.3 | M33: ='[1]Input Grid'!M69 -> 1.5 | N33: ='[1]Input Grid'!O69 -> 0.3 | O33: ='[1]Input Grid'!P69 -> 0.7
K34: Annual | L34: =AVERAGE(L22:L33) -> 0.2583333333 | M34: =MAX(M22:M33) -> 3.9 | N34: =AVERAGE(N22:N33) -> 0.225 | O34: =MAX(O22:O33) -> 2.1
J36: =+A5 -> 2025 | K36: mg/Nm3 | L36: Monthly mean of half-hourly averages | M36: Highest half- hourly average | N36: Monthly mean of daily averages | O36: Highest daily average
J37: A3 | K37: Jan
K38: Feb
K39: Mar
K40: Apr
K41: May
K42: Jun
K43: Jul
K44: Aug
K45: Sep
K46: Oct
K47: Nov
A48: Comments : | K48: Dec
A49: Line 1 was off for all of July except for a few hours on the 31st which led to no valid days for that line | K49: Annual | L49: =AVERAGE(L37:L48) ->  | M49: =MAX(M37:M48) -> 0 | N49: =AVERAGE(N37:N48) ->  | O49: =MAX(O37:O48) -> 0
J51: =+A5 -> 2025 | K51: mg/Nm3 | L51: Monthly mean of half-hourly averages | M51: Highest half- hourly average | N51: Monthly mean of daily averages | O51: Highest daily average
J52: A4 | K52: Jan
K53: Feb
K54: Mar
K55: Apr
K56: May
K57: Jun
K58: Jul
K59: Aug
K60: Sep
K61: Oct
K62: Nov
K63: Dec
K64: Annual | L64: =AVERAGE(L52:L63) ->  | M64: =MAX(M52:M63) -> 0 | N64: =AVERAGE(N52:N63) ->  | O64: =MAX(O52:O63) -> 0
J66: =+A5 -> 2025 | K66: mg/Nm3 | L66: Monthly mean of half-hourly averages | M66: Highest half- hourly average | N66: Monthly mean of daily averages | O66: Highest daily average
J67: A5 | K67: Jan
K68: Feb
K69: Mar
K70: Apr
K71: May
K72: Jun
K73: Jul
K74: Aug
K75: Sep
K76: Oct
K77: Nov
K78: Dec
K79: Annual | L79: =AVERAGE(L67:L78) ->  | M79: =MAX(M67:M78) -> 0 | N79: =AVERAGE(N67:N78) ->  | O79: =MAX(O67:O78) -> 0

Sheet CO 0.5 hourly
A1: =+'Cover Page'!$B$29 -> Annual Performance Report 2025 | E1: =+'Cover Page'!$B$33 -> Eastcroft EfW Site
A3: Monitoring of Carbon Monoxide (half hourly) | D3: Whole Installation | G3: See Notes in Cell Q3 | J3: =+A3 -> Monitoring of Carbon Monoxide (half hourly) | N3: Per Combustion Line | Q3: Notes:
A5: Please complete this tab for your plant if you have 1/2 hourly CO ELVs; otherwise, leave it blank and complete the CO 95% 10 min tab
Q7: User to add logic to complete Whole installation, Table A5:G18. From the data in Per Combustion Line, Table J6:O79, subject to No. of lines installed
A8: =+'Cover Page'!C39 -> 2025 | B8: 1/2 Hourly Reference Periods | E8: Daily Reference Periods
A9: mg/Nm3 | B9: 1/2 hourly CO ELV | C9: Monthly mean of half-hourly averages | D9: Highest half- hourly average | E9: Daily CO ELV | F9: Monthly mean of daily averages | G9: Highest daily average | J9: =+A8 -> 2025 | K9: mg/Nm3 | L9: Monthly mean of half-hourly averages | M9: Highest half- hourly average | N9: Monthly mean of daily averages | O9: Highest daily average
A10: Jan | B10: 100 | E10: 50 | J10: A1 | K10: Jan
A11: Feb | B11: =+B10 -> 100 | E11: =+E10 -> 50 | K11: Feb
A12: Mar | B12: =+B11 -> 100 | E12: =+E11 -> 50 | K12: Mar | Q12: Whole Installation table A5:G18:
A13: Apr | B13: 100 | E13: 50 | K13: Apr | Q13: Mean: for 1/2 hourly and daily periods calculate mean of values across all operational combustion lines for the month
A14: May | B14: 100 | E14: 50 | K14: May
A15: Jun | B15: 100 | E15: 50 | K15: Jun
A16: Jul | B16: 100 | E16: 50 | K16: Jul | Q16: Maximum: for 1/2 hourly and daily periods use the highest value across all operational combustion lines for the month
A17: Aug | B17: 100 | E17: 50 | K17: Aug
A18: Sep | B18: 100 | E18: 50 | K18: Sep
A19: Oct | B19: 100 | E19: 50 | K19: Oct
A20: Nov | B20: 100 | E20: 50 | K20: Nov
A21: Dec | B21: 100 | E21: 50 | K21: Dec
K22: Annual | L22: =AVERAGE(L10:L21) ->  | M22: =MAX(M10:M21) -> 0 | N22: =AVERAGE(N10:N21) ->  | O22: =MAX(O10:O21) -> 0
J24: =+A8 -> 2025 | K24: mg/Nm3 | L24: Monthly mean of half-hourly averages | M24: Highest half- hourly average | N24: Monthly mean of daily averages | O24: Highest daily average
J25: A2 | K25: Jan
K26: Feb
K27: Mar
K28: Apr
K29: May
K30: Jun
K31: Jul
K32: Aug
K33: Sep
K34: Oct
K35: Nov
K36: Dec
K37: Annual | L37: =AVERAGE(L25:L36) ->  | M37: =MAX(M25:M36) -> 0 | N37: =AVERAGE(N25:N36) ->  | O37: =MAX(O25:O36) -> 0
J39: =+A8 -> 2025 | K39: mg/Nm3 | L39: Monthly mean of half-hourly averages | M39: Highest half- hourly average | N39: Monthly mean of daily averages | O39: Highest daily average
J40: A3 | K40: Jan
K41: Feb
K42: Mar
K43: Apr
K44: May
K45: Jun
K46: Jul
K47: Aug
K48: Sep
K49: Oct
K50: Nov
A51: Comments : | K51: Dec
K52: Annual | L52: =AVERAGE(L40:L51) ->  | M52: =MAX(M40:M51) -> 0 | N52: =AVERAGE(N40:N51) ->  | O52: =MAX(O40:O51) -> 0
J54: =+A8 -> 2025 | K54: mg/Nm3 | L54: Monthly mean of half-hourly averages | M54: Highest half- hourly average | N54: Monthly mean of daily averages | O54: Highest daily average
J55: A4 | K55: Jan
K56: Feb
K57: Mar
K58: Apr
K59: May
K60: Jun
K61: Jul
K62: Aug
K63: Sep
K64: Oct
K65: Nov
K66: Dec
K67: Annual | L67: =AVERAGE(L55:L66) ->  | M67: =MAX(M55:M66) -> 0 | N67: =AVERAGE(N55:N66) ->  | O67: =MAX(O55:O66) -> 0
J69: =+A8 -> 2025 | K69: mg/Nm3 | L69: Monthly mean of half-hourly averages | M69: Highest half- hourly average | N69: Monthly mean of daily averages | O69: Highest daily average
J70: A5 | K70: Jan
K71: Feb
K72: Mar
K73: Apr
K74: May
K75: Jun
K76: Jul
K77: Aug
K78: Sep
K79: Oct
K80: Nov
K81: Dec
K82: Annual | L82: =AVERAGE(L70:L81) ->  | M82: =MAX(M70:M81) -> 0 | N82: =AVERAGE(N70:N81) ->  | O82: =MAX(O70:O81) -> 0

Sheet CO 95% 10 min
A1: =+'Cover Page'!$B$29 -> Annual Performance Report 2025 | E1: =+'Cover Page'!$B$33 -> Eastcroft EfW Site
A3: Monitoring of Carbon Monoxide (10-minute avg) | E3: Whole Installation | H3: See Notes in Cell S3 | J3: =+A3 -> Monitoring of Carbon Monoxide (10-minute avg) | O3: Per Combustion Line | Q3: Notes: | S3: Notes:
A5: Please complete this tab for your plant if you have 10-minute average CO ELVs; otherwise, leave it blank and complete the CO 0.5 hourly tab
S7: User to add logic to complete Whole installation, Table A5:H18. From the data in Per Combustion Line, Table K6:Q79, subject to No. of lines installed
A8: =+'Cover Page'!C39 -> 2025 | B8: 10-minute Reference Periods | F8: Daily Reference Periods
A9: mg/Nm3 | B9: 95%ile 10-min avg CO ELV | C9: Highest daily 95%ile 10-min average | D9: Monthly mean of 10-min averages | E9: Highest 10-min average | F9: Daily CO ELV | G9: Monthly mean of daily averages | H9: Highest daily average | K9: =+A8 -> 2025 | L9: mg/Nm3 | M9: Highest daily 95%ile 10-min average | N9: Monthly mean of 10-min averages | O9: Highest 10-min average | P9: Monthly mean of daily averages | Q9: Highest daily average
A10: Jan | B10: 150 | C10: 48.7 | D10: 7 | E10: 484.2 | F10: 50 | G10: 6.9 | H10: 14 | K10: A1 | L10: Jan | M10: 48.7 | N10: 8.1 | O10: 402.5 | P10: 8.1 | Q10: 14
A11: Feb | B11: =+B10 -> 150 | C11: 56 | D11: 7.45 | E11: 817.8 | F11: =+F10 -> 50 | G11: 7.45 | H11: 14 | L11: Feb | M11: 56 | N11: 8.9 | O11: 584.5 | P11: 8.9 | Q11: 13.5
A12: Mar | B12: =+B11 -> 150 | C12: 52.4 | D12: 7 | E12: 591.7 | F12: =+F11 -> 50 | G12: 7 | H12: 15.8 | L12: Mar | M12: 26 | N12: 8.1 | O12: 591.7 | P12: 8.2 | Q12: 15.8 | S12: Whole Installation table A5:H18:
A13: Apr | B13: 150 | C13: 57.5 | D13: 8.25 | E13: 956.2 | F13: 50 | G13: 8.2 | H13: 17.2 | L13: Apr | M13: 57.5 | N13: 10.2 | O13: 956.2 | P13: 10.1 | Q13: 17.2 | S13: Mean: for 10-min and daily periods use average of all operational combustion lines.
A14: May | B14: 150 | C14: 36.7 | D14: 10.35 | E14: 14112.9 | F14: 50 | G14: 6.9 | H14: 15.1 | L14: May | M14: 36.7 | N14: 14.7 | O14: 14112.9 | P14: 7.8 | Q14: 15.1
A15: Jun | B15: 150 | C15: 19.2 | D15: 5.4 | E15: 430 | F15: 50 | G15: 5.35 | H15: 8.7 | L15: Jun | M15: 19.2 | N15: 5.8 | O15: 430 | P15: 5.7 | Q15: 8.7
A16: Jul | B16: 150 | C16: 320.5 | D16: 18.65 | E16: 4179.4 | F16: 50 | G16: 3.15 | H16: 25.1 | L16: Jul | M16: 77.1 | N16: 23.7 | O16: 120.3 | P16: - | Q16: - | S16: Maximum: for 10-min and daily periods use the highest of all operational combustion lines in any month.
A17: Aug | B17: 150 | C17: 20.2 | D17: 6 | E17: 3024.9 | F17: 50 | G17: 5.4 | H17: 25.9 | L17: Aug | M17: 20.2 | N17: 6.8 | O17: 3024.9 | P17: 5.6 | Q17: 25.9
A18: Sep | B18: 150 | C18: 58.8 | D18: 6.1 | E18: 1437.2 | F18: 50 | G18: 5.65 | H18: 12 | L18: Sep | M18: 58.8 | N18: 6.1 | O18: 1437.2 | P18: 5.2 | Q18: 12
A19: Oct | B19: 150 | C19: 138.9 | D19: 7.9 | E19: 507.2 | F19: 50 | G19: 7.85 | H19: 19.7 | L19: Oct | M19: 138.9 | N19: 7.6 | O19: 507.2 | P19: 7.5 | Q19: 19.7
A20: Nov | B20: 150 | C20: 37.3 | D20: 9.55 | E20: 604.3 | F20: 50 | G20: 9.55 | H20: 17.8 | L20: Nov | M20: 37.3 | N20: 8.6 | O20: 246.5 | P20: 8.6 | Q20: 13.6
A21: Dec | B21: 150 | C21: 59.6 | D21: 7.7 | E21: 707.3 | F21: 50 | G21: 7.4 | H21: 16.8 | L21: Dec | M21: 59.6 | N21: 6.8 | O21: 515.2 | P21: 6.3 | Q21: 12.5
L22: Annual | M22: =AVERAGE(M10:M21) -> 53 | O22: =MAX(O10:O21) -> 14112.9 | P22: =AVERAGE(P10:P21) -> 7.454545455 | Q22: =MAX(Q10:Q21) -> 25.9
K24: =+A8 -> 2025 | L24: mg/Nm3 | M24: Highest daily 95%ile 10-min average | N24: Monthly mean of 10-min averages | O24: Highest 10-min average | P24: Monthly mean of daily averages | Q24: Highest daily average
K25: A2 | L25: Jan | M25: 19.2 | N25: 5.9 | O25: 484.2 | P25: 5.7 | Q25: 10.5
L26: Feb | M26: 30.1 | N26: 6 | O26: 817.8 | P26: 6 | Q26: 14
L27: Mar | M27: 52.4 | N27: 5.9 | O27: 256.5 | P27: 5.8 | Q27: 10.9
L28: Apr | M28: 24.7 | N28: 6.3 | O28: 717 | P28: 6.3 | Q28: 11.8
L29: May | M29: 20.3 | N29: 6 | O29: 417.5 | P29: 6 | Q29: 8.7
L30: Jun | M30: 13.8 | N30: 5 | O30: 265.9 | P30: 5 | Q30: 8.2
L31: Jul | M31: 320.5 | N31: 13.6 | O31: 4179.4 | P31: 6.3 | Q31: 25.1
L32: Aug | M32: 16.6 | N32: 5.2 | O32: 776.2 | P32: 5.2 | Q32: 12.9
L33: Sep | M33: 14.1 | N33: 6.1 | O33: 191.2 | P33: 6.1 | Q33: 8.8
L34: Oct | M34: 35 | N34: 8.2 | O34: 428.9 | P34: 8.2 | Q34: 12.5
L35: Nov | M35: 20 | N35: 10.5 | O35: 604.3 | P35: 10.5 | Q35: 17.8
L36: Dec | M36: 23.3 | N36: 8.6 | O36: 707.3 | P36: 8.5 | Q36: 16.8
L37: Annual | M37: =AVERAGE(M25:M36) -> 49.16666667 | O37: =MAX(O25:O36) -> 4179.4 | P37: =AVERAGE(P25:P36) -> 6.633333333 | Q37: =MAX(Q25:Q36) -> 25.1
K39: =+A8 -> 2025 | L39: mg/Nm3 | M39: Highest daily 95%ile 10-min average | N39: Monthly mean of 10-min averages | O39: Highest 10-min average | P39: Monthly mean of daily averages | Q39: Highest daily average
K40: A3 | L40: Jan
L41: Feb
L42: Mar
L43: Apr
L44: May
L45: Jun
L46: Jul
L47: Aug
L48: Sep
L49: Oct
L50: Nov
A51: Comments : | L51: Dec
A52: Environment Agency explanatory note: The 10-minute average ELV is based on the “95th percentile”. In this case this means that 95% of the 10 minute averages in the relevant 24-hour period (i.e. 137) must be below 150 mg/Nm3, and 5% (i.e. 7) are allowed to be any value above 150 mg/Nm3. Whilst we expect operators to minimise CO emissions at all times, it is perfectly acceptable for the value of the maximum 10-minute average to be above 150 mg/Nm3, provided the 95th percentile ELV has been met for that period. | L52: Annual | M52: =AVERAGE(M40:M51) ->  | O52: =MAX(O40:O51) -> 0 | P52: =AVERAGE(P40:P51) ->  | Q52: =MAX(Q40:Q51) -> 0
K54: =+A8 -> 2025 | L54: mg/Nm3 | M54: Highest daily 95%ile 10-min average | N54: Monthly mean of 10-min averages | O54: Highest 10-min average | P54: Monthly mean of daily averages | Q54: Highest daily average
K55: A4 | L55: Jan
L56: Feb
L57: Mar
L58: Apr
L59: May
L60: Jun
L61: Jul
L62: Aug
L63: Sep
L64: Oct
L65: Nov
L66: Dec
L67: Annual | M67: =AVERAGE(M55:M66) ->  | O67: =MAX(O55:O66) -> 0 | P67: =AVERAGE(P55:P66) ->  | Q67: =MAX(Q55:Q66) -> 0
K69: =+A8 -> 2025 | L69: mg/Nm3 | M69: 95%ile 10-min avg maximum | N69: Monthly CO 10-min avg mean | O69: 10-min avg maximum | P69: Monthly daily mean | Q69: Monthly daily maximum
K70: A5 | L70: Jan
L71: Feb
L72: Mar
L73: Apr
L74: May
L75: Jun
L76: Jul
L77: Aug
L78: Sep
L79: Oct
L80: Nov
L81: Dec
L82: Annual | M82: =AVERAGE(M70:M81) ->  | O82: =MAX(O70:O81) -> 0 | P82: =AVERAGE(P70:P81) ->  | Q82: =MAX(Q70:Q81) -> 0

Sheet NH3
A1: =+'Cover Page'!$B$29 -> Annual Performance Report 2025 | E1: =+'Cover Page'!$B$33 -> Eastcroft EfW Site
A3: Monitoring of Ammnonia emissions | D3: Whole Installation | G3: See Notes in Cell Q3 | J3: =+A3 -> Monitoring of Ammnonia emissions | N3: Per Combustion Line | Q3: Notes:
Q4: User to add logic to complete Whole installation, Table A5:G18. From the data in Per Combustion Line, Table J6:O79, subject to No. of lines installed
A5: =+'Cover Page'!C39 -> 2025 | B5: 1/2 Hourly Reference Periods | E5: Daily Reference Periods
A6: mg/Nm3 | B6: 1/2 hourly NH3 ELV | C6: Monthly mean of half-hourly averages | D6: Highest half- hourly average | E6: Daily NH3 ELV | F6: Monthly mean of daily averages | G6: Highest daily average | J6: =+A5 -> 2025 | K6: mg/Nm3 | L6: Monthly mean of half-hourly averages | M6: Highest half- hourly average | N6: Monthly mean of daily averages | O6: Highest daily average
A7: Jan | B7: None | C7: =(L7+L22)/2 -> 0.7 | D7: =MAX(M7,M22) -> 4.2 | E7: 15 | F7: =(N7+N22)/2 -> 0.65 | G7: =MAX(O7,O22) -> 1.4 | J7: A1 | K7: Jan | L7: 0.6 | M7: 3.4 | N7: 0.5 | O7: 0.8
A8: Feb | B8: =+B7 -> None | C8: =(L8+L23)/2 -> 0.7 | D8: =MAX(M8,M23) -> 10.1 | E8: 15 | F8: =(N8+N23)/2 -> 0.6 | G8: =MAX(O8,O23) -> 1.3 | K8: Feb | L8: 0.5 | M8: 5 | N8: 0.4 | O8: 0.9
A9: Mar | B9: =+B8 -> None | C9: 0.5 | D9: 16.6 | E9: 15 | F9: 0.45 | G9: 1.2 | K9: Mar | L9: 0.4 | M9: 16.6 | N9: 0.4 | O9: 1.2 | Q9: Whole Installation table A5:G18:
A10: Apr | B10: None | C10: 0.35 | D10: 5.5 | E10: 15 | F10: 0.35 | G10: 0.7 | K10: Apr | L10: 0.3 | M10: 5.5 | N10: 0.3 | O10: 0.5 | Q10: Mean: for 1/2 hourly and daily periods calculate mean of values across all operational combustion lines for the month
A11: May | B11: None | C11: 0.5 | D11: 17.4 | E11: 15 | F11: 0.45 | G11: 0.9 | K11: May | L11: 0.5 | M11: 17.4 | N11: 0.4 | O11: 0.8
A12: Jun | B12: None | C12: 0.8 | D12: 5.4 | E12: 15 | F12: 0.7 | G12: 1.6 | K12: Jun | L12: 0.7 | M12: 2.4 | N12: 0.6 | O12: 0.9
A13: Jul | B13: None | C13: 1.7 | D13: 7.9 | E13: 15 | F13: 0.65 | G13: 2.4 | K13: Jul | L13: 2 | M13: 3.6 | N13: - | O13: - | Q13: Maximum: for 1/2 hourly and daily periods use the highest value across all operational combustion lines for the month
A14: Aug | B14: None | C14: 1.25 | D14: 12.1 | E14: 15 | F14: 1 | G14: 2.4 | K14: Aug | L14: 1.4 | M14: 12.1 | N14: 1 | O14: 1.9
A15: Sep | B15: None | C15: 0.55 | D15: 4.8 | E15: 15 | F15: 0.5 | G15: 0.9 | K15: Sep | L15: 0.6 | M15: 4.8 | N15: 0.5 | O15: 0.8
A16: Oct | B16: None | C16: 0.4 | D16: 3 | E16: 15 | F16: 0.35 | G16: 0.7 | K16: Oct | L16: 0.4 | M16: 1.9 | N16: 0.3 | O16: 0.6
A17: Nov | B17: None | C17: 0.4 | D17: 2.1 | E17: 15 | F17: 0.35 | G17: 0.9 | K17: Nov | L17: 0.4 | M17: 2.1 | N17: 0.4 | O17: 0.9
A18: Dec | B18: None | C18: 0.35 | D18: 57.3 | E18: 15 | F18: 0.3 | G18: 0.7 | K18: Dec | L18: 0.4 | M18: 57.3 | N18: 0.3 | O18: 0.6
K19: Annual | L19: =AVERAGE(L7:L18) -> 0.6833333333 | M19: =MAX(M7:M18) -> 57.3 | N19: =AVERAGE(N7:N18) -> 0.4636363636 | O19: =MAX(O7:O18) -> 1.9
J21: =+A5 -> 2025 | K21: mg/Nm3 | L21: Monthly mean of half-hourly averages | M21: Highest half- hourly average | N21: Monthly mean of daily averages | O21: Highest daily average
J22: A2 | K22: Jan | L22: 0.8 | M22: 4.2 | N22: 0.8 | O22: 1.4
K23: Feb | L23: 0.9 | M23: 10.1 | N23: 0.8 | O23: 1.3
K24: Mar | L24: 0.6 | M24: 2.2 | N24: 0.5 | O24: 1
K25: Apr | L25: 0.4 | M25: 2.5 | N25: 0.4 | O25: 0.7
K26: May | L26: 0.5 | M26: 2.4 | N26: 0.5 | O26: 0.9
K27: Jun | L27: 0.9 | M27: 5.4 | N27: 0.8 | O27: 1.6
K28: Jul | L28: 1.4 | M28: 7.9 | N28: 1.3 | O28: 2.4
K29: Aug | L29: 1.1 | M29: 9.1 | N29: 1 | O29: 2.4
K30: Sep | L30: 0.5 | M30: 4 | N30: 0.5 | O30: 0.9
K31: Oct | L31: 0.4 | M31: 3 | N31: 0.4 | O31: 0.7
K32: Nov | L32: 0.4 | M32: 1.6 | N32: 0.3 | O32: 0.6
K33: Dec | L33: 0.3 | M33: 2.7 | N33: 0.3 | O33: 0.7
K34: Annual | L34: =AVERAGE(L22:L33) -> 0.6833333333 | M34: =MAX(M22:M33) -> 10.1 | N34: =AVERAGE(N22:N33) -> 0.6333333333 | O34: =MAX(O22:O33) -> 2.4
J36: =+A5 -> 2025 | K36: mg/Nm3 | L36: Monthly mean of half-hourly averages | M36: Highest half- hourly average | N36: Monthly mean of daily averages | O36: Highest daily average
J37: A3 | K37: Jan
K38: Feb
K39: Mar
K40: Apr
K41: May
K42: Jun
K43: Jul
K44: Aug
K45: Sep
K46: Oct
K47: Nov
A48: Comments : | K48: Dec
A49: An indicated ELV value of zero in the table above means that no ammonia limit is/was set in the permit. | K49: Annual | L49: =AVERAGE(L37:L48) ->  | M49: =MAX(M37:M48) -> 0 | N49: =AVERAGE(N37:N48) ->  | O49: =MAX(O37:O48) -> 0
J51: =+A5 -> 2025 | K51: mg/Nm3 | L51: Monthly mean of half-hourly averages | M51: Highest half- hourly average | N51: Monthly mean of daily averages | O51: Highest daily average
J52: A4 | K52: Jan
K53: Feb
K54: Mar
K55: Apr
K56: May
K57: Jun
K58: Jul
K59: Aug
K60: Sep
K61: Oct
K62: Nov
K63: Dec
K64: Annual | L64: =AVERAGE(L52:L63) ->  | M64: =MAX(M52:M63) -> 0 | N64: =AVERAGE(N52:N63) ->  | O64: =MAX(O52:O63) -> 0
J66: =+A5 -> 2025 | K66: mg/Nm3 | L66: Monthly mean of half-hourly averages | M66: Highest half- hourly average | N66: Monthly mean of daily averages | O66: Highest daily average
J67: A5 | K67: Jan
K68: Feb
K69: Mar
K70: Apr
K71: May
K72: Jun
K73: Jul
K74: Aug
K75: Sep
K76: Oct
K77: Nov
K78: Dec
K79: Annual | L79: =AVERAGE(L67:L78) ->  | M79: =MAX(M67:M78) -> 0 | N79: =AVERAGE(N67:N78) ->  | O79: =MAX(O67:O78) -> 0

Sheet Template changes log
A1: Log of changes to template (Environment Agency use only)
A3: Date | B3: Description of change | C3: New version number and date
A4: 2024-01-16 | B4: Air (periodic) tab: corrected default O2 reference from 6 to 11% | C4: Version 23.5a (for incinerators) - 16/01/2024
A5: 2024-09-23 | B5: Air (periodic) tab: corrected symbol for Thallium to Tl
A6: 2024-09-23 | B6: Air (periodic) tab: removed last year's references to different emission limit values applying from 03/12/23 and updated all relevant ELVs
A7: 2024-09-23 | B7: Tabs for continuously monitored pollutants (HCl, SO2 etc.): changed terminology in table headings to improve clarity
A8: 2024-09-23 | B8: Tabs for continuously monitored pollutants (HCl, SO2 etc.): removed last year's references to different emission limit values applying from 03/12/23 and updated all relevant ELVs
A9: 2024-09-23 | B9: Perf 1 tab: updated formula for water usage to report m3 rather than litres and corrected error with formula copying operator name
A10: 2024-09-23 | B10: Operational Summary tab: table added on start-ups and shut-downs
A11: 2024-09-23 | B11: Operational Summary tab: table added on dioxins and mercury protocols
A12: 2024-09-23 | B12: Operational Summary tab: table added on AST, QAL 2 and calibration functions
A13: 2024-09-23 | B13: CO2 N2O tab: various changes made to notes to reflect the fact that most plants should now have calibrated CEMS and flow meters + some have C14 samplers and more up to date industry data | C13: Version 24a (for incinerators) - 23/09/24
A14: 2024-11-08 | B14: CO2 N2O tab: Changed the N2O CO2 equivalence factor from 298 to 265 in line with recently updated government greenhouse gas figures: https://www.gov.uk/government/publications/greenhouse-gas-reporting-conversion-factors-2024
A15: 2024-11-08 | B15: CO2 N2O tab: Added an additional requirement for municipal EfW plants to state the yearly average biogenic percentage of the waste by mass, and reference to a document which sets out a methodology for calculating NCV of waste from the results of C14 sampling.
A16: 2024-11-08 | B16: Permit Compliance tab: Two additional columns added + explanatory notes to the table entitled "Summary of non-compliances under the permit" to allow CCS scores to be stated where relevant.
A17: 2024-11-08 | B17: Residue Quality tab: Note added explaining application of TOC and LOI limits and asking operators to report both metrics where measured. | C17: Version 24.1a (for incinerators) - 08/11/24
A18: 2024-11-27 | B18: Operational Summary tab: table added on start-ups and shut-downs | C18: Version 24.2a (for incinerators) - 27/11/24
A19: 2025-11-27 | B19: Cover Page: Print as PDF and Print Report and pdf buttons deleted and blank columns removed; contents page deleted | C19: Version 25.1a (for incinerators) - 27/11/25
A20: 2025-11-27 | B20: Residue Quality tab renamed to "Residues", and Summary of residue handling table moved from Operational Summary tab to Residues tab.
A21: 2025-11-27 | B21: Various changes made to the Operational Data tab including • Reformatting of the rows under the Operational data heading (Rows 3-8) to make it clearer what information is required. • Amendment of the rows under the Energy Usage / Export heading (Rows 26-32) to calculate an “indicative parasitic load” (now excluding energy imported) • Amendment of the unit for gas usage from cubic feet to cubic metres (Row 50) • Some amendments to the first 2 notes and other minor edits • Deleted "Overall Availability, mean avg. of all lines, hrs" row
A22: 2025-11-27 | B22: Operational Summary tab: Note added requiring all emergency shut-downs be listed, irrespective of whether or not they were reportable.
A23: 2025-11-27 | B23: CO2 N2O tab: Note added to ask operators to ensure that relevant data reported here matches that which will be submitted under the Pollution Inventory
